Workbook

Sheet Instructions
C2: Instructional Notes
C3: Module 2 SmartForm
B5: SmartForm Purpose
B7: The purpose of the Module 2 SmartForm is to:
C8: 1. Collect data required for reporting Module 2 of the CSBG Annual Report. 2. Alert CSBG Eligible Entities of possible data quality issues during the data collection process. 3. Provide CSBG Eligible Entities an explanation of possible data quality issues so they can determine whether the data needs to be modified. 4. Provide State Offices a guided review of CSBG Eligible Entity reported data prior to finalizing and submitting data in OLDC.
B10: Components of the Smart Form
B12: There are 5 tabs in the Module 2 SmartForm:
C13: Module 2 Instructions - For more detailed guidance on Module 2 of the CSBG Annual Report, review the CSBG Annual Report, Module 2 Instruction Manual.
C14: Section A. Local CSBG Expen - This tab should be used by CSBG Eligible Entities to enter data on Module 2, Section A of the CSBG Annual Report
C15: Section B. Local Agency Cap - This tab should be used by CSBG Eligible Entities to enter data on Module 2, Section B of the CSBG Annual Report
C16: Section C Local CSBG Resources - This tab should be used by CSBG Eligible Entities to enter data on Module 2, Section C of the CSBG Annual Report
C17: Outstanding Errors and Warnings Tab: This tab provides a summary list of data fields in Sections A, B, and C with possible data quality issues, as well as a brief description of the issues.
B19: Error and Warning Messages - Overview
B21: An Error is activated when the user has entered data that is considered invalid by the SmartForm (for example, a user reports they served a negative number of participants). A Warning is activated when data is considered valid, but should be reviewed by the user to confirm its accuracy (for example, a user reports that none of the participants served achieved an outcome). Please note: a Warning message does not necessarily mean the data is incorrect. Review the reason for the warning and determine whether the data is correct or requires revision.
B23: Error and Warning Messages - Example
B25: The error message will describe the error and/or warning(s) that were activated. An example of a message is included below:
B30: Color Coded Fields
B32: RED: The user has activated an error message. YELLOW: The user has activated a warning message. The highlighting serves as a reminder to the CSBG Eligible Entity of the possible data quality issue. Once data is entered that resolves the error and/or warning message(s), the red and/or yellow highlighting will disappear.
B34: Current Year and Prior Year Data
B36: Each tab for Sections A, B, & C are prepopulated with prior year data. This should be used when reviewing current year data to identify discrepancies. The data comes from the FY18 Annual Report. In future years all fields will be populated. Note: the user cannot edit prior year data.
B38: Outstanding Errors and Warnings Tab
B40: The SmartForm's Outstanding Errors and Warnings tab lists the location and description of all Errors and Warnings activated. The Outstanding Warnings tab updates every time the user saves the SmartForm. Therefore, it is critical that users save the SmartForm prior to reviewing the Outstanding Warnings tab.

Sheet Outstanding Errors and Warnings
E2: Double click in any row to go to the cell that generated the error or warning.
B4: Module 2 Errors and Warnings
B5: Tab | C5: Data Field | D5: Severity | E5: Message Description | F5: A3_Admin
B6: Section A. Local CSBG Expen | C6: A.2i. CSBG Expenditures Domains - Agency Capacity Building | D6: Warning | E6: The value entered for the current year is greater than $0.00, while last year, the value reported here was $0.00. | F6: M2A2iCapacity
B7: Section B. Local Agency Capacit | C7: B.4a. Staff with Certifications - ROMA Trainers | D7: Warning | E7: The value entered for the current year is greater than 0, while last year, the value reported here was 0. | F7: M2B4aROMATrainers
B8: Section C. Local CSBG Resources | C8: C.3a. Federal Resources Allocated - Weatherization (DOE) | D8: Warning | E8: The value entered for the current year is greater than $0.00, while last year, the value reported here was $0.00. | F8: M2C3aDOEWx
B9: Section C. Local CSBG Resources | C9: C.3b.1. Federal Resources Allocated - HHS - LIHEAP Fuel Assistance | D9: Warning | E9: The value entered for the current year is either more than double or less than half of the value reported last year. | F9: M2C3b1LIHEAPAssist
B10: Section C. Local CSBG Resources | C10: C.3b.2. Federal Resources Allocated - HHS - LIHEAP Weatherization | D10: Warning | E10: The value entered for the current year is greater than $0.00, while last year, the value reported here was $0.00. | F10: M2C3b2LIHEAPWx
B11: Section C. Local CSBG Resources | C11: C.3b.6. Federal Resources Allocated - HHS - SSBG | D11: Warning | E11: The value entered for the current year is either more than double or less than half of the value reported last year. | F11: M2C3b6SSBG
B12: Section C. Local CSBG Resources | C12: C.3c.3. Federal Resources Allocated - USDA - Other Food Programs | D12: Warning | E12: The value entered for the current year is either more than double or less than half of the value reported last year. | F12: M2C3c3USDAFood
B13: Section C. Local CSBG Resources | C13: C.3d.1. Federal Resources Allocated - HUD - CDBG | D13: Warning | E13: The value entered for the current year is greater than $0.00, while last year, the value reported here was $0.00. | F13: M2C3d1CDBG
B14: Section C. Local CSBG Resources | C14: C.3d.4. Federal Resources Allocated - HUD - HOME TBRA | D14: Warning | E14: The value entered for the current year is greater than $0.00, while last year, the value reported here was $0.00. | F14: M2C3d4HOMETBRA
B15: Section C. Local CSBG Resources | C15: C.3d.6. Federal Resources Allocated - HUD - ESG | D15: Warning | E15: The value entered for the current year is either more than double or less than half of the value reported last year. | F15: M2C3d6ESG
B16: Section C. Local CSBG Resources | C16: C.3k. Federal Resources Allocated - Dept of Treasury | D16: Warning | E16: The value entered for the current year is greater than $0.00, while last year, the value reported here was $0.00. | F16: M2C3kTreasury
B17: Section C. Local CSBG Resources | C17: C.4i. State Resources Allocated - Senior Programs | D17: Warning | E17: The value entered for the current year is greater than $0.00, while last year, the value reported here was $0.00. | F17: M2C4iStateSenior
B18: Section C. Local CSBG Resources | C18: C.5a. Local Resources Allocated - Unrestricted Funds | D18: Warning | E18: The value entered for the current year is greater than $0.00, while last year, the value reported here was $0.00. | F18: M2C5aLocalUnrestricted
B19: Section C. Local CSBG Resources | C19: M2C3liOtherFedDollar. Other HHS Resources - Specify 1 | D19: Warning | E19: If you specify other HHS resources, you must enter a description, CFDA #, and $ value. | F19: M2C3liOtherFedCFDA

Sheet Section A. Local CSBG Expen
B2: FY 20 | C2: Module 2, Section A: Local Agency CSBG Expenditures - Data Entry Form | H2: FY 19 | I2: Module 2, Section A: Local Agency CSBG Expenditures - Data Entry Form
C3: Name of CSBG Eligible Entity (enter below): | I3: State Name:
C4: Southeastern Utah Association of Local Governments
C5: State Name (enter below): | D5: DUNS | I5: Name of CSBG Eligible Entity:
C6: Utah | D6: 097758627
C8: A.1 CSBG Eligible Entity Reporting Period: | I8: A.1 CSBG Eligible Entity Reporting Period:
D10: =IF(Lookups!C15<>1,"FATAL ERROR: Select One Checkbox"," ") -> 
C11: A.1a. July 1-June 30 | I11: A.1a. July 1-June 30
C12: A.1b. October 1-September 30 | I12: A.1b. October 1-September 30
C13: A.1c. January 1-December 31 | I13: A.1c. January 1-December 31
C15: A.2 CSBG Expenditures: | I15: A.2 CSBG Expenditures:
C17: CSBG Expenditures Domains | D17: CSBG Funds | I17: CSBG Expenditures Domains | J17: CSBG Funds
C18: A.2a. Employment | D18: 15825 | I18: A.2a. Employment | J18: 12473
C19: A.2b. Education and Cognitive Development | I19: A.2b. Education and Cognitive Development
C20: A.2c. Income, Infrastructure, and Asset Building | I20: A.2c. Income, Infrastructure, and Asset Building
C21: A.2d. Housing | D21: 2670 | I21: A.2d. Housing | J21: 2464
C22: A.2e. Health and Social/Behavioral Development (includes nutrition) | D22: 94890 | I22: A.2e. Health and Social/Behavioral Development (includes nutrition) | J22: 91147
C23: A.2f. Civic Engagement and Community Involvement | I23: A.2f. Civic Engagement and Community Involvement
C24: A.2g. Services Supporting Multiple Domains | I24: A.2g. Services Supporting Multiple Domains
C25: A.2h. Linkages (e.g. partnerships that support multiple domains) | I25: A.2h. Linkages (e.g. partnerships that support multiple domains)
C26: A.2i. Agency Capacity Building (detailed below in Table A.4) | D26: 10970 | I26: A.2i. Agency Capacity Building (detailed below in Table A.4)
C27: A.2j. Other (e.g. emergency management/disaster relief) | I27: A.2j. Other (e.g. emergency management/disaster relief)
C28: A.2k. Total CSBG Expenditures (auto calculated) | D28: =SUM(D18:D27) -> 124355 | I28: A.2k. Total CSBG Expenditures (auto calculated) | J28: =SUM(J18:J27) -> 106084
C30: A.3 Of the CSBG funds reported above, report the total amount used for Administration*. | D30: 14740 | I30: A.3 Of the CSBG funds reported above, report the total amount used for Administration*. | J30: 13638
C31: *for more information on what qualifies as Administration, refer to IM37 | I31: *for more information on what qualifies as Administration, refer to IM37
C34: A.4 Details on Agency Capacity Building Activities Funded by CSBG: | I34: A.4 Details on Agency Capacity Building Activities Funded by CSBG:
C36: A.4.1. Please identify which activities were funded by CSBG under Agency Capacity in Table B. Please check all that apply. | I36: A.4.1. Please identify which activities were funded by CSBG under Agency Capacity in Table B. Please check all that apply.
C37: =IF(AND(A41_Activities=0,D26<>0)," ERROR: You must select at least 1 checkbox since you reported funds in A.2i"," ") -> 
C41: A.4.1.oth. Please specify Other Activities funded by CSBG under Agency Capacity: | I41: A.4.1.oth. Please specify Other Activities funded by CSBG under Agency Capacity:
C42: Staff meetings, board meetings, Risk assessment, and succession planning.
C43: =IF(AND(Lookups!C24,C42=""),"ERROR: You must specify A.4.1.oth, 'Other Activities funded by CSBG under Agency Capacity' (above). You selected 'Other' in the checkbox in item A.4.1."," ") -> 

Sheet Section B. Local Agency Capacit
B2: FY 20 | C2: Module 2, Section B: Local Agency Capacity Building - Data Entry Form | H2: FY 19 | I2: Module 2, Section B: Local Agency Capacity Building - Data Entry Form
C3: ="Name of CSBG Eligible Entity: " & IF(M2AgencyName<>"",M2AgencyName," ") -> Name of CSBG Eligible Entity: Southeastern Utah Association of Local Governments | D3: DUNS | I3: Name of CSBG Eligible Entity
C4: ="State Name: " & IF(M2StateName<>"",M2StateName," ") -> State Name: Utah | D4: =IF(M2DUNS<>"",M2DUNS," ") -> 097758627
C5: ^CODED TO PREPOULATE..DO NOT TOUCH
C6: B.1. CSBG Eligibly Entity Reporting Period: | I6: B.1. CSBG Eligibly Entity Reporting Period:
C7: B.1. CSBG Eligible Entity Reporting Period | D7: "X" | I7: B.1. CSBG Eligible Entity Reporting Period | J7: "X"
C8: B.1a. July 1-June 30 | E8: FALSE | I8: July 1-June 30
C9: B.1b. October 1-September 30 | E9: TRUE | I9: October 1-September 30
C10: B.1c. January 1-December 31 | E10: FALSE | I10: January 1-December 31
C12: B.2 Hours of Agency Capacity Building (e.g. training, planning, assessment): | D12: Hours | I12: B.2 Hours of Agency Capacity Building (e.g. training, planning, assessment): | J12: Hours
C13: B.2a. Hours of Board Members in capacity building activities | D13: 18 | I13: a. Hours of Board Members in Trainings | J13: 16
C14: B.2b. Hours of Agency Staff in capacity building activities | D14: 336 | I14: b. Hours of Agency Staff in Trainings | J14: 317
C16: B.3. Volunteer Hours of Agency Capacity Building (e.g. program support, service delivery, fundraising): | D16: Hours | I16: B.3. Volunteer Hours of Agency Capacity Building (e.g. program support, service delivery, fundraising): | J16: Hours
C17: B.3a. Total number of volunteer hours donated to the agency | D17: 12198 | I17: B.3a. Number of Voluntee hours donated to the agency | J17: 13129
C18: B.3a.1. Of the above, the total number of volunteer hours donated by individuals with low-incomes | D18: 6175 | I18: B.3a.1. Total number of volunteer hours donated by low-income individuals to community action | J18: 6721
C20: B.4. The number of staff who hold certifications that increase agency capacity to achieve family and community outcomes, as measured by one or more of the following: | D20: Number | I20: B.4. The number of staff who hold certifications that increase agency capacity to achieve family and community outcomes, as measured by one or more of the following: | J20: Number
C21: B.4a. Number of Nationally Certified ROMA Trainers | D21: 1 | I21: B.4a. Number of Nationally Certified ROMA Trainers
C22: B.4b. Number of Nationally Certified ROMA Implementers | I22: B.4b. Number of Nationally Certified ROMA Implementers
C23: B.4c. Number of Certified Community Action Professionals (CCAP) | D23: 6 | I23: B.4c. Number of Certified Community Action Professionals (CCAP) | J23: 6
C24: B.4d. Number of Staff with a child development certification | I24: B.4d. Number of Staff with a child development certification
C25: B.4e. Number of Staff with a family development certification | D25: 15 | I25: B.4e. Number of Staff with a family development certification | J25: 14
C26: B.4f. Number of Pathways Reviewers | I26: B.4f. Number of Pathways Reviewers
C27: B.4g. Number of Staff with Home Energy Professional Certifications | D27: 2 | I27: B.4g. Number of Staff with Home Energy Professional Certifications | J27: 3
C28: B.4g.1. Number of Energy Auditors | D28: 2 | I28: B.4g.1. Number of Energy Auditors | J28: 3
C29: B.4g.2. Number of Retrofit Installer Technicians | D29: 2 | I29: B.4g.2. Number of Retrofit Installer Technicians | J29: 2
C30: B.4g.3. Number of Crew Leaders | D30: 1 | I30: B.4g.3. Number of Crew Leaders | J30: 2
C31: B.4g.4. Number of Quality Control Inspectors (QCI) | D31: 2 | I31: B.4g.4. Number of Quality Control Inspectors (QCI) | J31: 2
C32: B.4h. Number of LEED Risk Certified assessors | I32: B.4h. Number of LEED Risk Certified assessors
C33: B.4i. Number of Building Performance Institute (BPI) certified professionals | D33: 2 | I33: B.4i. Number of Building Performance Institute (BPI) certified professionals | J33: 2
C34: B.4j. Number of Classroom Assessment Scoring System (CLASS) certified professionals | I34: B.4j. Number of Classroom Assessment Scoring System (CLASS) certified professionals
C35: B.4k. Number of Certified Housing Quality Standards (HQS) Inspectors | I35: B.4k. Number of Certified Housing Quality Standards (HQS) Inspectors
C36: B.4l. Number of American Institute of Certified Planners (AICP) | I36: B.4l. Number of American Institute of Certified Planners (AICP)
C37: B.4m. Other (Please specify others below): | I37: B.4m. Other (Please specify others below):
C40: =IF(AND(D37<>0,C39=""),"ERROR: You must specify the Other certifications held by staff members "," ") -> 
C42: B.5. Number of organizations, both public and private, that the CSBG Eligible Entity actively works with to expand resources and opportunities in order to achieve family and community outcomes: | D42: Unduplicated Number of Organizations | I42: B.5. Number of organizations, both public and private, that the CSBG Eligible Entity actively works with to expand resources and opportunities in order to achieve family and community outcomes: | J42: Unduplicated Number of Organizations
C43: B.5a. Non-Profit | D43: 13 | I43: B.5a. Non-Profit | J43: 13
C44: B.5b. Faith Based | D44: 7 | I44: B.5b. Faith Based | J44: 7
C45: B.5c. Local Government | D45: 4 | I45: B.5c. Local Government | J45: 4
C46: B.5d. State Government | D46: 5 | E46: =IF(OR(M2B5dState=0, M2B5dState=""),1,0) -> 0 | I46: B.5d. State Government | J46: 5
C47: B.5e. Federal Government | D47: 2 | I47: B.5e. Federal Government | J47: 2
C48: B.5f. For-Profit Business or Corporation | D48: 23 | I48: B.5f. For-Profit Business or Corporation | J48: 22
C49: B.5g. Consortiums/Collaborations | D49: 3 | I49: B.5g. Consortiums/Collaborations | J49: 2
C50: B.5h. School Districts | D50: 4 | I50: B.5h. School Districts | J50: 4
C51: B.5i. Institutions of Post-Secondary Education/Training | D51: 1 | I51: B.5i. Institutions of Post-Secondary Education/Training | J51: 1
C52: B.5j. Financial/Banking Institutions | D52: 5 | I52: B.5j. Financial/Banking Institutions | J52: 5
C53: B.5k. Health Service Organizations | D53: 4 | I53: B.5k. Health Service Organizations | J53: 4
C54: B.5l. Statewide Associations or Collaborations | D54: 5 | E54: =IF(OR(M2B5lStatewide=0,M2B5lStatewide=""),1,0) -> 0 | I54: B.5l. Statewide Associations or Collaborations | J54: 5
C56: =IF(AND(E46=1,E54=0),"At a minimum, the state CSBG office should be a partner organization",IF(AND(E46=0,E54=1),"At a minimum, the state Community Action Association should be a partner organization",IF(AND(E46=1,E54=1),"At a minimum, the state CSBG office and state Community Action Association should be partner organizations",""))) -> 

Sheet Section C. Local CSBG Resources
B3: FY 20 | C3: Module 2, Section C: Allocated Resources per CSBG Eligible Entity - Data Entry Form | O3: FY 19 | P3: Module 2, Section C: Allocated Resources per CSBG Eligible Entity - Data Entry Form
C5: Name of CSBG Eligble Entity: | G5: =IF(M2AgencyName<>"",M2AgencyName," ") -> Southeastern Utah Association of Local Governments | P5: Name of CSBG Eligible Entity:
C6: State Name: | G6: =IF(M2StateName<>"",M2StateName," ") -> Utah | J6: DUNS: | K6: =IF(M2DUNS<>"",M2DUNS," ") -> 097758627
C8: C.1. CSBG Eligible Entity Reporting Period | I8: "X" | P8: C.1. CSBG Eligible Entity Reporting Period | V8: "X"
C9: C.1a. July 1 - June 30 | M9: FALSE | P9: C.1a. July 1 - June 30
C10: C.1b. October 1 - September 30 | M10: TRUE | P10: C.1b. October 1 - September 30
C11: C.1c. January 1 - December 31 | M11: FALSE | P11: C.1c. January 1 - December 31
C14: C.2. Amount of FY 2020 CSBG allocated to reporting entity | J14: C.2 | K14: 216854 | P14: C.2. Amount of FY 2019 CSBG allocated to reporting entity | W14: C.2 | X14: 136379
C17: C.3. Federal Resources Allocated (Other than CSBG) | P17: C.3. Federal Resources Allocated (Other than CSBG)
C19: C.3a. Weatherization (DOE) (include oil overcharge $$) | J19: C.3a. | K19: 179606 | P19: C.3a. Weatherization (DOE) (include oil overcharge $$) | W19: C.3a.
C20: C.3b. Health and Human Services (HHS) | P20: C.3b. Health and Human Services (HHS)
D21: C.3b.1. | F21: LIHEAP - Fuel Assistance (include oil overcharge $$) | J21: C.3b.1. | K21: 568878 | Q21: C.3b.1. | S21: LIHEAP - Fuel Assistance (include oil overcharge $$) | W21: C.3b.1. | X21: 231758
D22: C.3b.2. | F22: LIHEAP - Weatherization (include oil overcharge $$) | J22: C.3b.2. | K22: 325756 | Q22: C.3b.2. | S22: LIHEAP - Weatherization (include oil overcharge $$) | W22: C.3b.2.
D23: C.3b.3. | F23: Head Start | J23: C.3b.3. | Q23: C.3b.3. | S23: Head Start | W23: C.3b.3.
D24: C.3b.4. | F24: Early Head Start | J24: C.3b.4. | Q24: C.3b.4. | S24: Early Head Start | W24: C.3b.4.
D25: C.3b.5. | F25: Older Americans Act | J25: C.3b.5. | Q25: C.3b.5. | S25: Older Americans Act | W25: C.3b.5.
D26: C.3b.6. | F26: Social Services Block Grant (SSBG) | J26: C.3b.6. | K26: 31300 | Q26: C.3b.6. | S26: Social Services Block Grant (SSBG) | W26: C.3b.6. | X26: 4100
D27: C.3b.7. | F27: Medicare/Medicaid | J27: C.3b.7. | Q27: C.3b.7. | S27: Medicare/Medicaid | W27: C.3b.7.
D28: C.3b.8. | F28: Assets for Independence (AFI) | J28: C.3b.8. | Q28: C.3b.8. | S28: Assets for Independence (AFI) | W28: C.3b.8.
D29: C.3b.9. | F29: Temporary Assistance for Needy Families (TANF) | J29: C.3b.9. | K29: 366469 | Q29: C.3b.9. | S29: Temporary Assistance for Needy Families (TANF) | W29: C.3b.9. | X29: 362898
D30: C.3b.10. | F30: Child Care Development Block Grant (CCDBG) | J30: C.3b.10. | Q30: C.3b.10. | S30: Child Care Development Block Grant (CCDBG) | W30: C.3b.10.
D31: C.3b.11. | F31: Community Economic Development (CED) | J31: C.3b.11. | Q31: C.3b.11. | S31: Community Economic Development (CED) | W31: C.3b.11.
D32: C.3b.12. | F32: Other HHS Resource Description | G32: =IF(AND(OR(AND(F33<>"",I33<>"",K33<>""),AND(F33="",I33="",K33=""), AND(F33="",I33="",K33=0)), OR(AND(F34<>"",I34<>"",K34<>""),AND(F34="",I34="",K34=""), AND(F34="",I34="",K34=0) ), OR(AND(F35<>"",I35<>"",K35<>""),AND(F35="",I35="",K35=""), AND(F35="",I35="",K35=0)), OR(AND(F36<>"",I36<>"",K36<>""),AND(F36="",I36="",K36=""), AND(F36="",I36="",K36=0))),"","ENTER DESCRIPTION, CFDA#, & DOLLAR AMOUNT BELOW") ->  | Q32: C.3b.12. | S32: Other HHS Resources
E33: C.3b.12.i. | H33: CFDA #: | J33: C.3b.12.i. | R33: C.3b.12.i. | U33: CFDA #: | W33: C.3b.12.i.
E34: C.3b.12.ii. | H34: CFDA #: | J34: C.3b.12.ii. | R34: C.3b.12.ii. | U34: CFDA #: | W34: C.3b.12.ii.
E35: C.3b.12.iii. | H35: CFDA #: | J35: C.3b.12.iii. | R35: C.3b.12.iii. | U35: CFDA #: | W35: C.3b.12.iii.
E36: C.3b.12.iv. | H36: CFDA #: | J36: C.3b.12.iv. | R36: C.3b.12.iv. | U36: CFDA #: | W36: C.3b.12.iv.
E37: C.3b.12.v. | H37: CFDA #: | J37: C.3b.12.v.
E38: C.3b.12.vi. | H38: CFDA #: | J38: C.3b.12.vi.
E39: C.3b.12.vii. | H39: CFDA #: | J39: C.3b.12.vii.
E40: C.3b.12.viii. | H40: CFDA #: | J40: C.3b.12.viii.
E41: C.3b.12.ix. | H41: CFDA #: | J41: C.3b.12.ix.
E42: C.3b.12.x. | H42: CFDA #: | J42: C.3b.12.x.
E44: C.3b.13. Total Other HHS Resources (autocalculated) | J44: C.3b.13. | K44: =SUM(K33:K42) -> 0 | R44: C.3b.13. Total Other HHS Resources (autocalculated) | W44: C.3b.13. | X44: =SUM(X33:X36) -> 0
C45: C.3c. Department of Agriculture (USDA) | P45: C.3c. Department of Agriculture (USDA)
D46: C.3c.1. | F46: Special Supplemental Nutrition for Women, Infants, and Children (WIC) | J46: C.3c.1. | Q46: C.3c.1. | S46: Special Supplemental Nutrition for Women, Infants, and Children (WIC) | W46: C.3c.1.
D47: C.3c.2. | F47: All USDA Non-Food programs (e.g. rural development) | J47: C.3c.2. | Q47: C.3c.2. | S47: All USDA Non-Food programs (e.g. rural development) | W47: C.3c.2.
D48: C.3c.3. | F48: All other USDA Food programs | J48: C.3c.3. | K48: 45337 | Q48: C.3c.3. | S48: All other USDA Food programs | W48: C.3c.3. | X48: 21582.84
C49: C.3d. Department of Housing and Urban Development (HUD) | P49: C.3d. Department of Housing and Urban Development (HUD)
D50: C.3d.1. | F50: Community Development Block Grant (CDBG) - Federal, State, and Local | J50: C.3d.1. | K50: 789937 | Q50: C.3d.1. | S50: Community Development Block Grant (CDBG) - Federal, State, and Local | W50: C.3d.1.
D51: C.3d.2. | F51: Section 8 | J51: C.3d.2. | Q51: C.3d.2. | S51: Section 8 | W51: C.3d.2.
D52: C.3d.3. | F52: Section 202 | J52: C.3d.3. | Q52: C.3d.3. | S52: Section 202 | W52: C.3d.3.
D53: C.3d.4. | F53: Home Tenant-Based Rental Assistance (HOME TBRA) | J53: C.3d.4. | K53: 26733 | Q53: C.3d.4. | S53: Home Tenant-Based Rental Assistance (HOME TBRA) | W53: C.3d.4.
D54: C.3d.5. | F54: HOPE for Homeowners Program (H4H) | J54: C.3d.5. | Q54: C.3d.5. | S54: HOPE for Homeowners Program (H4H) | W54: C.3d.5.
D55: C.3d.6. | F55: Emergency Solutions Grant (ESG) | J55: C.3d.6. | K55: 447225 | Q55: C.3d.6. | S55: Emergency Solutions Grant (ESG) | W55: C.3d.6. | X55: 114037
D56: C.3d.7. | F56: Continuum of Care (CoC) | J56: C.3d.7. | Q56: C.3d.7. | S56: Continuum of Care (CoC) | W56: C.3d.7.
D57: C.3d.8. | F57: All other HUD programs, including homeless programs | J57: C.3d.8. | Q57: C.3d.8. | S57: All other HUD programs, including homeless programs | W57: C.3d.8.
C58: C.3e. Department of Labor (DOL) | P58: C.3e. Department of Labor (DOL)
D59: C.3e.1. | F59: Workforce Innovation and Opportunity Act (WIOA) *previously WIA | J59: C.3e.1. | Q59: C.3e.1. | S59: Workforce Innovation and Opportunity Act (WIOA) *previously WIA | W59: C.3e.1.
D60: C.3e.2. | F60: Other DOL Employment and Training programs | J60: C.3e.2. | Q60: C.3e.2. | S60: Other DOL Employment and Training programs | W60: C.3e.2.
D61: C.3e.3. | F61: All other DOL programs | J61: C.3e.3. | Q61: C.3e.3. | S61: All other DOL programs | W61: C.3e.3.
C62: C.3f. Corporation for National and Community Service (CNCS) programs | J62: C.3f. | P62: C.3f. Corporation for National and Community Service (CNCS) programs | W62: C.3f.
C63: C.3g. Federal Emergency Management Agency (FEMA) | J63: C.3g. | P63: C.3g. Federal Emergency Management Agency (FEMA) | W63: C.3g.
C64: C.3h. Department of Transportation | J64: C.3h. | P64: C.3h. Department of Transportation | W64: C.3h.
C65: C.3i. Department of Education | J65: C.3i. | P65: C.3i. Department of Education | W65: C.3i.
C66: C.3j. Department of Justice | J66: C.3j. | P66: C.3j. Department of Justice | W66: C.3j.
C67: C.3k. Department of Treasury | J67: C.3k. | K67: 181302 | P67: C.3k. Department of Treasury | W67: C.3k.
C68: C.3l. Other Federal Resources | G68: =IF(AND(OR(AND(F69<>"",I69<>"",K69<>""),AND(F69="",I69="",K69=""), AND(F69="",I69="",K69=0)), OR(AND(F70<>"",I70<>"",K70<>""),AND(F70="",I70="",K70=""), AND(F70="",I70="",K70=0) ), OR(AND(F71<>"",I71<>"",K71<>""),AND(F71="",I71="",K71=""), AND(F71="",I71="",K71=0)), OR(AND(F72<>"",I72<>"",K72<>""),AND(F72="",I72="",K72=""), AND(F72="",I72="",K72=0))),"","ENTER DESCRIPTION, CFDA#, & DOLLAR AMOUNT BELOW") ->  | P68: C.3l. Other Federal Resources
E69: C.3l.i. | F69: EDA Planning | H69: CFDA #: | I69: 11.307 | J69: C.3l.i. | K69: 260000 | R69: C.3l.i. | U69: CFDA #: | W69: C.3l.i.
E70: C.3l.ii. | H70: CFDA #: | J70: C.3l.ii. | R70: C.3l.ii. | U70: CFDA #: | W70: C.3l.ii.
E71: C.3l.iii. | H71: CFDA #: | J71: C.3l.iii. | R71: C.3l.iii. | U71: CFDA #: | W71: C.3l.iii.
E72: C.3l.iv. | H72: CFDA #: | J72: C.3l.iv. | R72: C.3l.iv. | U72: CFDA #: | W72: C.3l.iv.
E73: C.3l.v. | H73: CFDA #: | J73: C.3l.v.
E74: C.3l.vi. | H74: CFDA #: | J74: C.3l.vi.
E75: C.3l.vii. | H75: CFDA #: | J75: C.3l.vii.
E76: C.3l.viii. | H76: CFDA #: | J76: C.3l.viii.
E77: C.3l.ix. | H77: CFDA #: | J77: C.3l.ix.
E78: C.3l.x. | H78: CFDA #: | J78: C.3l.x.
C80: C.3m. Total Other Federal Resources (autocalculated) | J80: C.3m. | K80: =SUM(K69:K78) -> 260000 | P80: C.3m. Total Other Federal Resources (autocalculated) | W80: C.3m. | X80: =SUM(X69:X72) -> 0
C81: C.3n. Total: Non-CSBG Federal Resources Allocated (autocalculated) | J81: C.3n. | K81: =SUM(K19,K21:K31,K44,K46:K48,K50:K57,K59:K67,K80) -> 3222543 | P81: C.3n. Total: Non-CSBG Federal Resources Allocated (autocalculated) | W81: C.3.n. | X81: =SUM(X19,X21:X30,X44,X46:X48,X50:X57,X59:X67,X80) -> 734375.84
C84: C.4. State Resources Allocated | P84: C.4. State Resources Allocated
D86: C.4a. | F86: State appropriated funds used for same purpose as Federal CSBG funds | J86: C.4a. | Q86: C.4a. | S86: State appropriated funds used for same purpose as Federal CSBG funds | W86: C.4a.
D87: C.4b. | F87: State Housing and Homeless programs (include housing tax credits) | J87: C.4b. | Q87: C.4b. | S87: State Housing and Homeless programs (include housing tax credits) | W87: C.4b.
D88: C.4c. | F88: State Nutrition programs | J88: C.4c. | K88: 25568 | Q88: C.4c. | S88: State Nutrition programs | W88: C.4c. | X88: 25568
D89: C.4d. | F89: State Early Childhood Programs (e.g. Head Start, Day Care) | J89: C.4d. | Q89: C.4d. | S89: State Early Childhood Programs (e.g. Head Start, Day Care) | W89: C.4d.
D90: C.4e. | F90: State Energy programs | J90: C.4e. | Q90: C.4e. | S90: State Energy programs | W90: C.4e.
D91: C.4f. | F91: State Health programs | J91: C.4f. | Q91: C.4f. | S91: State Health programs | W91: C.4f.
D92: C.4g. | F92: State Youth Development programs | J92: C.4g. | Q92: C.4g. | S92: State Youth Development programs | W92: C.4g.
D93: C.4h. | F93: State Employment and Training programs | J93: C.4h. | Q93: C.4h. | S93: State Employment and Training programs | W93: C.4h.
D94: C.4i. | F94: State Senior programs | J94: C.4i. | K94: 264100 | Q94: C.4i. | S94: State Senior programs | W94: C.4i.
D95: C.4j. | F95: State Transportation programs | J95: C.4j. | Q95: C.4j. | S95: State Transportation programs | W95: C.4j.
D96: C.4k. | F96: State Education programs | J96: C.4k. | Q96: C.4k. | S96: State Education programs | W96: C.4k.
D97: C.4l. | F97: State Community, Rural and Economic Development programs | J97: C.4l. | Q97: C.4l. | S97: State Community, Rural and Economic Development programs | W97: C.4l.
D98: C.4m. | F98: State Family Development programs | J98: C.4m. | Q98: C.4m. | S98: State Family Development programs | W98: C.4m.
D99: C.4n. | F99: Other State Resources | H99: =IF(AND(OR(AND(F100<>"",K100<>""), AND(F100="",K100=""), AND(F100="", K100=0)), OR(AND(F101<>"",K101<>""), AND(F101="",K101=""), AND(F101="", K101=0)), OR(AND(F102<>"",K102<>""), AND(F102="",K102=""), AND(F102="", K102=0) ), OR(AND(F103<>"",K103<>""), AND(F103="",K103=""), AND(F103="", K103=0))),"","ENTER DESCRIPTION & DOLLAR AMOUNT BELOW") ->  | Q99: C.4n. | S99: Other State Resources
E100: C.4n.i. | F100: EITC | J100: C.4n.i. | K100: 22750 | R100: C.4n.i. | W100: C.4n.i.
E101: C.4n.ii. | J101: C.4n.ii. | R101: C.4n.ii. | W101: C.4n.ii.
E102: C.4n.iii. | J102: C.4n.iii. | R102: C.4n.iii. | W102: C.4n.iii.
E103: C.4n.iv. | J103: C.4n.iv. | R103: C.4n.iv. | W103: C.4n.iv.
E104: C.4n.v. | J104: C.4n.v.
E105: C.4n.vi. | J105: C.4n.vi.
E106: C.4n.vii. | J106: C.4n.vii.
E107: C.4n.viii. | J107: C.4n.viii.
E108: C.4n.ix. | J108: C.4n.ix.
E109: C.4n.x. | J109: C.4n.x.
E110: C.4o. Total Other State Resources (autocalculated) | J110: C.4o. | K110: =SUM(K100:K109) -> 22750 | R110: C.4o. Total Other State Resources (autocalculated) | W110: C.4o. | X110: =SUM(X100:X103) -> 0
C112: C.4p. Total: State Resources Allocated (autocalculated) | J112: C.4p. | K112: =SUM(K86:K98,K110) -> 312418 | P112: C.4p. Total: State Resources Allocated (autocalculated) | W112: C.4p. | X112: =SUM(X86:X98,X110) -> 25568
C113: C.4q. | D113: If any of these resources were also reported under Item C.3n. (Federal Resources), please estimate the amount. | J113: C.4q. | P113: C.4q. | Q113: If any of these resources were also reported under Item C.3n. (Federal Resources), please estimate the amount. | W113: C.4q.
C116: C.5. Local Resources Allocated | P116: C.5. Local Resources Allocated
D118: C.5a. | F118: Amount of unrestricted funds appropriated by local government | J118: C.5a. | K118: 100000 | Q118: C.5a. | S118: Amount of unrestricted funds appropriated by local government | W118: C.5a.
D119: C.5b. | F119: Amount of restricted funds appropriated by local government | J119: C.5b. | Q119: C.5b. | S119: Amount of restricted funds appropriated by local government | W119: C.5b.
D120: C.5c. | F120: Value of Contract Services | J120: C.5c. | Q120: C.5c. | S120: Value of Contract Services | W120: C.5c.
D121: C.5d. | F121: Value of in-kind goods/services received from local government | J121: C.5d. | Q121: C.5d. | S121: Value of in-kind goods/services received from local government | W121: C.5d.
C123: C.5e. Total: Local Resources Allocated (autocalculated) | J123: C.5e. | K123: =SUM(K118:K121) -> 100000 | P123: C.5e. Total: Local Resources Allocated (autocalculated) | W123: C.5e. | X123: =SUM(X118:X121) -> 0
C125: C.5f. | D125: If any of these resources were also reported under Item C.3n. or C.4p. (Federal or State Resources), please estimate the amount. | J125: C.5f. | P125: C.5f. | Q125: If any of these resources were also reported under Item C.3n. or C.4p. (Federal or State Resources), please estimate the amount. | W125: C.5f.
C128: C.6. Private Sector Resources Allocated | P128: C.6. Private Sector Resources Allocated
D130: C.6a. | F130: Funds from foundations, corporations, United Way, other nonprofits | J130: C.6a. | K130: 24219 | Q130: C.6a. | S130: Funds from foundations, corporations, United Way, other nonprofits | W130: C.6a. | X130: 27779
D131: C.6b. | F131: Other donated funds | J131: C.6b. | K131: 29522 | Q131: C.6b. | S131: Other donated funds | W131: C.6b. | X131: 17039
D132: C.6c. | F132: Value of other donated items, food, clothing, furniture, etc. | J132: C.6c. | K132: 1482327 | Q132: C.6c. | S132: Value of other donated items, food, clothing, furniture, etc. | W132: C.6c. | X132: 1515282
D133: C.6d. | F133: Value of in-kind services received from businesses | J133: C.6d. | K133: 5899 | Q133: C.6d. | S133: Value of in-kind services received from businesses | W133: C.6d. | X133: 6350
D134: C.6e. | F134: Payments by clients for services | J134: C.6e. | Q134: C.6e. | S134: Payments by clients for services | W134: C.6e.
D135: C.6f. | F135: Payments by private entities for goods or services for low income | J135: C.6f. | Q135: C.6f. | S135: Payments by private entities for goods or services for low income | W135: C.6f.
F136: clients or communities | S136: clients or communities
C138: C.6g. Total: Private Sector Resources Allocated (autocalculated) | J138: C.6g. | K138: =SUM(K130:K134,K135) -> 1541967 | P138: C.6g. Total: Private Sector Resources Allocated (autocalculated) | W138: C.6g. | X138: =SUM(X130:X134,X135) -> 1566450
C140: C.6h. | D140: If any of these resources were also reported under Item C.3n., C.4p. or C.5e. (Federal, State or Local Resources), please estimate the amount. | J140: C.6h. | P140: C.6h. | Q140: If any of these resources were also reported under Item C.3n., C.4p. or C.5e. (Federal, State or Local Resources), please estimate the amount. | W140: C.6h.
C144: C.7. Total Non-CSBG Resources Allocated: (Federal, State, Local & Private)* | J144: C.7. | K144: =SUM((K81+K112+K123+K138)-(K113+K125+K140)) -> 5176928 | P144: C.7. Total Non-CSBG Resources Allocated: (Federal, State, Local & Private)* | W144: C.7. | X144: =SUM((X81+X112+X123+X138)-(X113+X125+X140)) -> 2326393.84
C145: C.8. Total Resources in CSBG Eligible Entity (including CSBG)* | J145: C.8. | K145: =SUM((K81+K112+K123+K138)-(K113+K125+K140)+K14) -> 5393782 | P145: C.8. Total Resources in CSBG Eligible Entity (including CSBG)* | W145: C.8. | X145: =SUM((X81+X112+X123+X138)-(X113+X125+X140)+X14) -> 2462772.84
C147: Note : * All totals are autocalculated | P147: Note : * All totals are autocalculated

Sheet Identification (hidden)
C1: Version: | D1: M2-2020.1
C3: State: | D3: =M2StateName -> Utah
C4: Name of CSBG Eligible Entity Reporting: | D4: =M2AgencyName -> Southeastern Utah Association of Local Governments
C5: DUNS Number: | D5: =M2DUNS -> 097758627
C6: Organization: | D6: ACF
C7: Program Acronym: | D7: CSBG
C8: Lead Agency: | D8: UTAH
C9: Grant Number: | D9: 2001UTCOSR
C11: Report Period Start Date: | D11: 2019-10-01
C12: Report Period End Date: | D12: 2020-09-30

Sheet XML Export Map (hidden)
A2: Question/Reference | B2: Smartform Range Name | C2: Address | D2: Value | E2: Type | F2: XML Export Name for DB | G2: Max Length
I3: =FIND("]",J3) -> 87 | J3: =CELL("address",INDIRECT(B4)) -> '[FY20_UT_M2_Southeastern_Utah_Association_of_Local_Governments_097758627 (1) (1).xlsm]Identification'!$D$8
A4: leadAgency | B4: M2LeadAgency | C4: ="'='" & MID(CELL("address",INDIRECT(B4)),$I$3+1,100) -> '='Identification'!$D$8 | D4: =M2LeadAgency -> UTAH | E4: Text | F4: GRANTEENAME | G4: 100
A5: State Name | B5: M2StateName | C5: ="'='" & MID(CELL("address",INDIRECT(B5)),$I$3+1,100) -> '='Section A. Local CSBG Expen'!$C$6 | D5: =M2StateName -> Utah | E5: Text
A6: Agency Name | B6: M2AgencyName | C6: ="'='" & MID(CELL("address",INDIRECT(B6)),$I$3+1,100) -> '='Section A. Local CSBG Expen'!$C$4 | D6: =M2AgencyName -> Southeastern Utah Association of Local Governments | E6: Text | F6: ELIGIBLEENTITY
A7: orgAbbrev | B7: M2OrgAbbrev | C7: ="'='" & MID(CELL("address",INDIRECT(B7)),$I$3+1,100) -> '='Identification'!$D$6 | D7: =M2OrgAbbrev -> ACF | E7: Text | F7: orgAbbrev
A8: programAcronym | B8: M2ProgramAcronym | C8: ="'='" & MID(CELL("address",INDIRECT(B8)),$I$3+1,100) -> '='Identification'!$D$7 | D8: =M2ProgramAcronym -> CSBG | E8: Text | F8: programAcronym
A9: DUNS Number | B9: M2Duns | C9: ="'='" & MID(CELL("address",INDIRECT(B9)),$I$3+1,100) -> '='Section A. Local CSBG Expen'!$D$6 | D9: =M2DUNS -> 097758627 | E9: Text | F9: duns
A10: reportPeriodStartDate | B10: M2ReportPeriodStartDate | C10: ="'='" & MID(CELL("address",INDIRECT(B10)),$I$3+1,100) -> '='Identification'!$D$11 | D10: =M2ReportPeriodStartDate -> 2019-10-01 | E10: Date | F10: reportPeriodStartDate
A11: reportPeriodEndDate | B11: M2ReportPeriodEndDate | C11: ="'='" & MID(CELL("address",INDIRECT(B11)),$I$3+1,100) -> '='Identification'!$D$12 | D11: =M2ReportPeriodEndDate -> 2020-09-30 | E11: Date | F11: reportPeriodEndDate
A12: grantNumber | B12: M2GrantNumber | C12: ="'='" & MID(CELL("address",INDIRECT(B12)),$I$3+1,100) -> '='Identification'!$D$9 | D12: =M2GrantNumber -> 2001UTCOSR | E12: Text | F12: grantNumber
A13: subGrantee | D13: TRUE | E13: True/False | F13: subGrantee
A14: A1_Period | B14: A1_Period | C14: ="'='" & MID(CELL("address",INDIRECT(B14)),$I$3+1,100) -> '='Lookups'!$C$15 | D14: =IF(Lookups!$C$15="","",Lookups!$C$15) -> 1 | E14: Number | F14: M2A1
A15: A1_Period | B15: Period_1 | C15: ="'='" & MID(CELL("address",INDIRECT(B15)),$I$3+1,100) -> '='Lookups'!$C$16 | D15: =IF(Lookups!$C$16="",0,Lookups!$C$16) -> FALSE | E15: True/False | F15: M2A1aJulyToJune
A16: A1_Period | B16: Period_2 | C16: ="'='" & MID(CELL("address",INDIRECT(B16)),$I$3+1,100) -> '='Lookups'!$C$17 | D16: =IF(Lookups!$C$17="",0,Lookups!$C$17) -> TRUE | E16: True/False | F16: M2A1bOctToSept
A17: A1_Period | B17: Period_3 | C17: ="'='" & MID(CELL("address",INDIRECT(B17)),$I$3+1,100) -> '='Lookups'!$C$18 | D17: =IF(Lookups!$C$18="",0,Lookups!$C$18) -> FALSE | E17: True/False | F17: M2A1cJanToDec
A18: A2a_Employment | B18: M2A2aEmployment | C18: ="'='" & MID(CELL("address",INDIRECT(B18)),$I$3+1,100) -> '='Section A. Local CSBG Expen'!$D$18 | D18: =IF(ISBLANK(M2A2aEmployment),"",M2A2aEmployment) -> 15825 | E18: Number | F18: M2A2aEmployment
A19: A2b_Education | B19: M2A2bEducation | C19: ="'='" & MID(CELL("address",INDIRECT(B19)),$I$3+1,100) -> '='Section A. Local CSBG Expen'!$D$19 | D19: =IF(ISBLANK(M2A2bEducation),"",M2A2bEducation) ->  | E19: Number | F19: M2A2bEducation
A20: A2c_Income | B20: M2A2cIncome | C20: ="'='" & MID(CELL("address",INDIRECT(B20)),$I$3+1,100) -> '='Section A. Local CSBG Expen'!$D$20 | D20: =IF(ISBLANK(M2A2cIncome),"",M2A2cIncome) ->  | E20: Number | F20: M2A2cIncome
A21: A2d_Housing | B21: M2A2dHousing | C21: ="'='" & MID(CELL("address",INDIRECT(B21)),$I$3+1,100) -> '='Section A. Local CSBG Expen'!$D$21 | D21: =IF(ISBLANK(M2A2dHousing),"",M2A2dHousing) -> 2670 | E21: Number | F21: M2A2dHousing
A22: A2e_Health | B22: M2A2eHealth | C22: ="'='" & MID(CELL("address",INDIRECT(B22)),$I$3+1,100) -> '='Section A. Local CSBG Expen'!$D$22 | D22: =IF(ISBLANK(M2A2eHealth),"",M2A2eHealth) -> 94890 | E22: Number | F22: M2A2eHealth
A23: A2f_Civic | B23: M2A2fCivic | C23: ="'='" & MID(CELL("address",INDIRECT(B23)),$I$3+1,100) -> '='Section A. Local CSBG Expen'!$D$23 | D23: =IF(ISBLANK(M2A2fCivic),"",M2A2fCivic) ->  | E23: Number | F23: M2A2fCivic
A24: A2g_Services | B24: M2A2gServices | C24: ="'='" & MID(CELL("address",INDIRECT(B24)),$I$3+1,100) -> '='Section A. Local CSBG Expen'!$D$24 | D24: =IF(ISBLANK(M2A2gServices),"",M2A2gServices) ->  | E24: Number | F24: M2A2gServices
A25: A2h_Linkages | B25: M2A2hLinkages | C25: ="'='" & MID(CELL("address",INDIRECT(B25)),$I$3+1,100) -> '='Section A. Local CSBG Expen'!$D$25 | D25: =IF(ISBLANK(M2A2hLinkages),"",M2A2hLinkages) ->  | E25: Number | F25: M2A2hLinkages
A26: A2i_Capacity | B26: M2A2iCapacity | C26: ="'='" & MID(CELL("address",INDIRECT(B26)),$I$3+1,100) -> '='Section A. Local CSBG Expen'!$D$26 | D26: =IF(ISBLANK(M2A2iCapacity),"",M2A2iCapacity) -> 10970 | E26: Number | F26: M2A2iCapacity
A27: A2j_Other | B27: M2A2jOther | C27: ="'='" & MID(CELL("address",INDIRECT(B27)),$I$3+1,100) -> '='Section A. Local CSBG Expen'!$D$27 | D27: =IF(ISBLANK(M2A2jOther),"",M2A2jOther) ->  | E27: Number | F27: M2A2jOther
A28: A2k_Total | B28: M2A2kTotal | C28: ="'='" & MID(CELL("address",INDIRECT(B28)),$I$3+1,100) -> '='Section A. Local CSBG Expen'!$D$28 | D28: =IF(ISBLANK(M2A2kTotal),"",M2A2kTotal) -> 124355 | E28: Number | F28: M2A2kTotal
A29: A3_Admin | B29: M2A3Admin | C29: ="'='" & MID(CELL("address",INDIRECT(B29)),$I$3+1,100) -> '='Section A. Local CSBG Expen'!$D$30 | D29: =IF(ISBLANK(M2A3Admin),"",M2A3Admin) -> 14740 | E29: Number | F29: M2A3Admin
A30: A41_Activities | B30: A41_Activities | C30: ="'='" & MID(CELL("address",INDIRECT(B30)),$I$3+1,100) -> '='Lookups'!$C$20 | D30: =IF(ISBLANK(A41_Activities),"",A41_Activities) -> 5 | E30: Number
A31: A41_Activities | B31: M2A41CommunityNeeds | C31: ="'='" & MID(CELL("address",INDIRECT(B31)),$I$3+1,100) -> '='Lookups'!$C$22 | D31: =IF(Lookups!C22="","",Lookups!C22) -> TRUE | E31: True/False | F31: M2A41CommunityNeeds
A32: A41_Activities | B32: M2A41DataManagement | C32: ="'='" & MID(CELL("address",INDIRECT(B32)),$I$3+1,100) -> '='Lookups'!$C$23 | D32: =IF(Lookups!C23="","",Lookups!C23) -> TRUE | E32: True/False | F32: M2A41DataManagement
A33: A41_Other | B33: M2A41Other | C33: ="'='" & MID(CELL("address",INDIRECT(B33)),$I$3+1,100) -> '='Lookups'!$C$24 | D33: =IF(Lookups!$C$24="","",Lookups!$C$24) -> TRUE | E33: True/False | F33: M2A41Other
A34: A41_Activities | B34: M2A41StrategicPlanning | C34: ="'='" & MID(CELL("address",INDIRECT(B34)),$I$3+1,100) -> '='Lookups'!$C$25 | D34: =IF(Lookups!$C$25="","",Lookups!$C$25) -> TRUE | E34: True/False | F34: M2A41StrategicPlanning
A35: A41_OtherText | B35: M2A41OtherText | C35: ="'='" & MID(CELL("address",INDIRECT(B35)),$I$3+1,100) -> '='Section A. Local CSBG Expen'!$C$42 | D35: =IF(ISBLANK(M2A41OtherText),"",M2A41OtherText) -> Staff meetings, board meetings, Risk assessment, and succession planning. | E35: Text | F35: M2A41OtherText
A36: A41_Activities | B36: M2A41Training | C36: ="'='" & MID(CELL("address",INDIRECT(B36)),$I$3+1,100) -> '='Lookups'!$C$26 | D36: =IF(Lookups!$C$26="","",Lookups!$C$26) -> TRUE | E36: True/False | F36: M2A41Training
A37: A_Comments | B37: M2AComments | C37: ="'='" & MID(CELL("address",INDIRECT(B37)),$I$3+1,100) -> '='Section A. Local CSBG Expen'!$C$47 | D37: =IF(ISBLANK(M2AComments),"",M2AComments) ->  | E37: Memo | F37: M2AComments | G37: 5000
A38: B2a_Board | B38: M2B2aBoard | C38: ="'='" & MID(CELL("address",INDIRECT(B38)),$I$3+1,100) -> '='Section B. Local Agency Capacit'!$D$13 | D38: =IF(ISBLANK(M2B2aBoard),"",M2B2aBoard) -> 18 | E38: Number | F38: M2B2aBoard
A39: B2b_Agency | B39: M2B2bAgency | C39: ="'='" & MID(CELL("address",INDIRECT(B39)),$I$3+1,100) -> '='Section B. Local Agency Capacit'!$D$14 | D39: =IF(ISBLANK(M2B2bAgency),"",M2B2bAgency) -> 336 | E39: Number | F39: M2B2bAgency
A40: B3a_VolHoursDonated | B40: M2B3aVolHoursDonated | C40: ="'='" & MID(CELL("address",INDIRECT(B40)),$I$3+1,100) -> '='Section B. Local Agency Capacit'!$D$17 | D40: =IF(ISBLANK(M2B3aVolHoursDonated),"",M2B3aVolHoursDonated) -> 12198 | E40: Number | F40: M2B3aVolHoursDonated
A41: B3a1_HoursLI | B41: M2B3a1HoursLI | C41: ="'='" & MID(CELL("address",INDIRECT(B41)),$I$3+1,100) -> '='Section B. Local Agency Capacit'!$D$18 | D41: =IF(ISBLANK(M2B3a1HoursLI),"",M2B3a1HoursLI) -> 6175 | E41: Number | F41: M2B3a1HoursLI
A42: B4a_ROMATrainers | B42: M2B4aROMATrainers | C42: ="'='" & MID(CELL("address",INDIRECT(B42)),$I$3+1,100) -> '='Section B. Local Agency Capacit'!$D$21 | D42: =IF(ISBLANK(M2B4aROMATrainers),"",M2B4aROMATrainers) -> 1 | E42: Number | F42: M2B4aROMATrainers
A43: B4b_ROMAImplementers | B43: M2B4bROMAImplementers | C43: ="'='" & MID(CELL("address",INDIRECT(B43)),$I$3+1,100) -> '='Section B. Local Agency Capacit'!$D$22 | D43: =IF(ISBLANK(M2B4bROMAImplementers),"",M2B4bROMAImplementers) ->  | E43: Number | F43: M2B4bROMAImplementers
A44: B4c_CCAP | B44: M2B4cCCAP | C44: ="'='" & MID(CELL("address",INDIRECT(B44)),$I$3+1,100) -> '='Section B. Local Agency Capacit'!$D$23 | D44: =IF(ISBLANK(M2B4cCCAP),"",M2B4cCCAP) -> 6 | E44: Number | F44: M2B4cCCAP
A45: B4d_Child | B45: M2B4dChild | C45: ="'='" & MID(CELL("address",INDIRECT(B45)),$I$3+1,100) -> '='Section B. Local Agency Capacit'!$D$24 | D45: =IF(ISBLANK(M2B4dChild),"",M2B4dChild) ->  | E45: Number | F45: M2B4dChild
A46: B4e_Family | B46: M2B4eFamily | C46: ="'='" & MID(CELL("address",INDIRECT(B46)),$I$3+1,100) -> '='Section B. Local Agency Capacit'!$D$25 | D46: =IF(ISBLANK(M2B4eFamily),"",M2B4eFamily) -> 15 | E46: Number | F46: M2B4eFamily
A47: B4f_Pathways | B47: M2B4fPathways | C47: ="'='" & MID(CELL("address",INDIRECT(B47)),$I$3+1,100) -> '='Section B. Local Agency Capacit'!$D$26 | D47: =IF(ISBLANK(M2B4fPathways),"",M2B4fPathways) ->  | E47: Number | F47: M2B4fPathways
A48: B4g_Home | B48: M2B4gHome | C48: ="'='" & MID(CELL("address",INDIRECT(B48)),$I$3+1,100) -> '='Section B. Local Agency Capacit'!$D$27 | D48: =IF(ISBLANK(M2B4gHome),"",M2B4gHome) -> 2 | E48: Number | F48: M2B4gHome
A49: B4g1_Auditors | B49: M2B4g1Auditors | C49: ="'='" & MID(CELL("address",INDIRECT(B49)),$I$3+1,100) -> '='Section B. Local Agency Capacit'!$D$28 | D49: =IF(ISBLANK(M2B4g1Auditors),"",M2B4g1Auditors) -> 2 | E49: Number | F49: M2B4g1Auditors
A50: B4g2_Retrofit | B50: M2B4g2Retrofit | C50: ="'='" & MID(CELL("address",INDIRECT(B50)),$I$3+1,100) -> '='Section B. Local Agency Capacit'!$D$29 | D50: =IF(ISBLANK(M2B4g2Retrofit),"",M2B4g2Retrofit) -> 2 | E50: Number | F50: M2B4g2Retrofit
A51: B4g3_Crew | B51: M2B4g3Crew | C51: ="'='" & MID(CELL("address",INDIRECT(B51)),$I$3+1,100) -> '='Section B. Local Agency Capacit'!$D$30 | D51: =IF(ISBLANK(M2B4g3Crew),"",M2B4g3Crew) -> 1 | E51: Number | F51: M2B4g3Crew
A52: B4g4_QCI | B52: M2B4g4QCI | C52: ="'='" & MID(CELL("address",INDIRECT(B52)),$I$3+1,100) -> '='Section B. Local Agency Capacit'!$D$31 | D52: =IF(ISBLANK(M2B4g4QCI),"",M2B4g4QCI) -> 2 | E52: Number | F52: M2B4g4QCI
A53: B4h_LEED | B53: M2B4hLEED | C53: ="'='" & MID(CELL("address",INDIRECT(B53)),$I$3+1,100) -> '='Section B. Local Agency Capacit'!$D$32 | D53: =IF(ISBLANK(M2B4hLEED),"",M2B4hLEED) ->  | E53: Number | F53: M2B4hLEED
A54: B4i_BPI | B54: M2B4iBPI | C54: ="'='" & MID(CELL("address",INDIRECT(B54)),$I$3+1,100) -> '='Section B. Local Agency Capacit'!$D$33 | D54: =IF(ISBLANK(M2B4iBPI),"",M2B4iBPI) -> 2 | E54: Number | F54: M2B4iBPI
A55: B4j_CLASS | B55: M2B4jCLASS | C55: ="'='" & MID(CELL("address",INDIRECT(B55)),$I$3+1,100) -> '='Section B. Local Agency Capacit'!$D$34 | D55: =IF(ISBLANK(M2B4jCLASS),"",M2B4jCLASS) ->  | E55: Number | F55: M2B4jCLASS
A56: B4k_HQS | B56: M2B4kHQS | C56: ="'='" & MID(CELL("address",INDIRECT(B56)),$I$3+1,100) -> '='Section B. Local Agency Capacit'!$D$35 | D56: =IF(ISBLANK(M2B4kHQS),"",M2B4kHQS) ->  | E56: Number | F56: M2B4kHQS
A57: B4l_AICP | B57: M2B4lAICP | C57: ="'='" & MID(CELL("address",INDIRECT(B57)),$I$3+1,100) -> '='Section B. Local Agency Capacit'!$D$36 | D57: =IF(ISBLANK(M2B4lAICP),"",M2B4lAICP) ->  | E57: Number | F57: M2B4lAICP
A58: B4m_Other | B58: M2B4mOther | C58: ="'='" & MID(CELL("address",INDIRECT(B58)),$I$3+1,100) -> '='Section B. Local Agency Capacit'!$D$37 | D58: =IF(ISBLANK(M2B4mOther),"",M2B4mOther) ->  | E58: Number | F58: M2B4mOther
A59: B4m_Specify | B59: M2B4mSpecify | C59: ="'='" & MID(CELL("address",INDIRECT(B59)),$I$3+1,100) -> '='Section B. Local Agency Capacit'!$C$39 | D59: =IF(ISBLANK(M2B4mSpecify),"",M2B4mSpecify) ->  | E59: Text | F59: M2B4mSpecify
A60: B5a_NonProfit | B60: M2B5aNonProfit | C60: ="'='" & MID(CELL("address",INDIRECT(B60)),$I$3+1,100) -> '='Section B. Local Agency Capacit'!$D$43 | D60: =IF(ISBLANK(M2B5aNonProfit),"",M2B5aNonProfit) -> 13 | E60: Number | F60: M2B5aNonProfit
A61: B5b_Faith | B61: M2B5bFaith | C61: ="'='" & MID(CELL("address",INDIRECT(B61)),$I$3+1,100) -> '='Section B. Local Agency Capacit'!$D$44 | D61: =IF(ISBLANK(M2B5bFaith),"",M2B5bFaith) -> 7 | E61: Number | F61: M2B5bFaith
A62: B5c_Local | B62: M2B5cLocal | C62: ="'='" & MID(CELL("address",INDIRECT(B62)),$I$3+1,100) -> '='Section B. Local Agency Capacit'!$D$45 | D62: =IF(ISBLANK(M2B5cLocal),"",M2B5cLocal) -> 4 | E62: Number | F62: M2B5cLocal
A63: B5d_State | B63: M2B5dState | C63: ="'='" & MID(CELL("address",INDIRECT(B63)),$I$3+1,100) -> '='Section B. Local Agency Capacit'!$D$46 | D63: =IF(ISBLANK(M2B5dState),"",M2B5dState) -> 5 | E63: Number | F63: M2B5dState
A64: B5e_Federal | B64: M2B5eFederal | C64: ="'='" & MID(CELL("address",INDIRECT(B64)),$I$3+1,100) -> '='Section B. Local Agency Capacit'!$D$47 | D64: =IF(ISBLANK(M2B5eFederal),"",M2B5eFederal) -> 2 | E64: Number | F64: M2B5eFederal
A65: B5f_ForProfit | B65: M2B5fForProfit | C65: ="'='" & MID(CELL("address",INDIRECT(B65)),$I$3+1,100) -> '='Section B. Local Agency Capacit'!$D$48 | D65: =IF(ISBLANK(M2B5fForProfit),"",M2B5fForProfit) -> 23 | E65: Number | F65: M2B5fForProfit
A66: B5g_Consortiums | B66: M2B5gConsortiums | C66: ="'='" & MID(CELL("address",INDIRECT(B66)),$I$3+1,100) -> '='Section B. Local Agency Capacit'!$D$49 | D66: =IF(ISBLANK(M2B5gConsortiums),"",M2B5gConsortiums) -> 3 | E66: Number | F66: M2B5gConsortiums
A67: B5h_Schools | B67: M2B5hSchools | C67: ="'='" & MID(CELL("address",INDIRECT(B67)),$I$3+1,100) -> '='Section B. Local Agency Capacit'!$D$50 | D67: =IF(ISBLANK(M2B5hSchools),"",M2B5hSchools) -> 4 | E67: Number | F67: M2B5hSchools
A68: B5i_PostSecondary | B68: M2B5iPostSecondary | C68: ="'='" & MID(CELL("address",INDIRECT(B68)),$I$3+1,100) -> '='Section B. Local Agency Capacit'!$D$51 | D68: =IF(ISBLANK(M2B5iPostSecondary),"",M2B5iPostSecondary) -> 1 | E68: Number | F68: M2B5iPostSecondary
A69: B5j_Banks | B69: M2B5jBanks | C69: ="'='" & MID(CELL("address",INDIRECT(B69)),$I$3+1,100) -> '='Section B. Local Agency Capacit'!$D$52 | D69: =IF(ISBLANK(M2B5jBanks),"",M2B5jBanks) -> 5 | E69: Number | F69: M2B5jBanks
A70: B5k_Health | B70: M2B5kHealth | C70: ="'='" & MID(CELL("address",INDIRECT(B70)),$I$3+1,100) -> '='Section B. Local Agency Capacit'!$D$53 | D70: =IF(ISBLANK(M2B5kHealth),"",M2B5kHealth) -> 4 | E70: Number | F70: M2B5kHealth
A71: B5l_Statewide | B71: M2B5lStatewide | C71: ="'='" & MID(CELL("address",INDIRECT(B71)),$I$3+1,100) -> '='Section B. Local Agency Capacit'!$D$54 | D71: =IF(ISBLANK(M2B5lStatewide),"",M2B5lStatewide) -> 5 | E71: Number | F71: M2B5lStatewide
A72: B_Comments | B72: M2BComments | C72: ="'='" & MID(CELL("address",INDIRECT(B72)),$I$3+1,100) -> '='Section B. Local Agency Capacit'!$C$58 | D72: =IF(ISBLANK(M2BComments),"",M2BComments) ->  | E72: Memo | F72: M2BComments | G72: 5000
A73: C.2 | B73: M2C2AmtAllocated | C73: ="'='" & MID(CELL("address",INDIRECT(B73)),$I$3+1,100) -> '='Section C. Local CSBG Resources'!$K$14 | D73: =IF(ISBLANK(M2C2AmtAllocated),"",M2C2AmtAllocated) -> 216854 | E73: Number | F73: M2C2AmtAllocated
A74: C.3a | B74: M2C3aDOEWx | C74: ="'='" & MID(CELL("address",INDIRECT(B74)),$I$3+1,100) -> '='Section C. Local CSBG Resources'!$K$19 | D74: =IF(ISBLANK(M2C3aDOEWx),"",M2C3aDOEWx) -> 179606 | E74: Number | F74: M2C3aDOEWx
A75: C.3b.1 | B75: M2C3b1LIHEAPAssist | C75: ="'='" & MID(CELL("address",INDIRECT(B75)),$I$3+1,100) -> '='Section C. Local CSBG Resources'!$K$21 | D75: =IF(ISBLANK(M2C3b1LIHEAPAssist),"",M2C3b1LIHEAPAssist) -> 568878 | E75: Number | F75: M2C3b1LIHEAPAssist
A76: C.3b.2 | B76: M2C3b2LIHEAPWx | C76: ="'='" & MID(CELL("address",INDIRECT(B76)),$I$3+1,100) -> '='Section C. Local CSBG Resources'!$K$22 | D76: =IF(ISBLANK(M2C3b2LIHEAPWx),"",M2C3b2LIHEAPWx) -> 325756 | E76: Number | F76: M2C3b2LIHEAPWx
A77: C.3b.3 | B77: M2C3b3HeadStart | C77: ="'='" & MID(CELL("address",INDIRECT(B77)),$I$3+1,100) -> '='Section C. Local CSBG Resources'!$K$23 | D77: =IF(ISBLANK(M2C3b3HeadStart),"",M2C3b3HeadStart) ->  | E77: Number | F77: M2C3b3HeadStart
A78: C.3b.4 | B78: M2C3b4EarlyHeadStart | C78: ="'='" & MID(CELL("address",INDIRECT(B78)),$I$3+1,100) -> '='Section C. Local CSBG Resources'!$K$24 | D78: =IF(ISBLANK(M2C3b4EarlyHeadStart),"",M2C3b4EarlyHeadStart) ->  | E78: Number | F78: M2C3b4EarlyHeadStart
A79: C.3b.5 | B79: M2C3b5OlderAmericans | C79: ="'='" & MID(CELL("address",INDIRECT(B79)),$I$3+1,100) -> '='Section C. Local CSBG Resources'!$K$25 | D79: =IF(ISBLANK(M2C3b5OlderAmericans),"",M2C3b5OlderAmericans) ->  | E79: Number | F79: M2C3b5OlderAmericans
A80: C.3b.6 | B80: M2C3b6SSBG | C80: ="'='" & MID(CELL("address",INDIRECT(B80)),$I$3+1,100) -> '='Section C. Local CSBG Resources'!$K$26 | D80: =IF(ISBLANK(M2C3b6SSBG),"",M2C3b6SSBG) -> 31300 | E80: Number | F80: M2C3b6SSBG
A81: C.3b.7 | B81: M2C3b7MedicareMedicaid | C81: ="'='" & MID(CELL("address",INDIRECT(B81)),$I$3+1,100) -> '='Section C. Local CSBG Resources'!$K$27 | D81: =IF(ISBLANK(M2C3b7MedicareMedicaid),"",M2C3b7MedicareMedicaid) ->  | E81: Number | F81: M2C3b7MedicareMedicaid
A82: C.3b.8 | B82: M2C3b8AFI | C82: ="'='" & MID(CELL("address",INDIRECT(B82)),$I$3+1,100) -> '='Section C. Local CSBG Resources'!$K$28 | D82: =IF(ISBLANK(M2C3b8AFI),"",M2C3b8AFI) ->  | E82: Number | F82: M2C3b8AFI
A83: C.3b.9 | B83: M2C3b9TANF | C83: ="'='" & MID(CELL("address",INDIRECT(B83)),$I$3+1,100) -> '='Section C. Local CSBG Resources'!$K$29 | D83: =IF(ISBLANK(M2C3b9TANF),"",M2C3b9TANF) -> 366469 | E83: Number | F83: M2C3b9TANF
A84: C.3b.10 | B84: M2C3b10CCDBG | C84: ="'='" & MID(CELL("address",INDIRECT(B84)),$I$3+1,100) -> '='Section C. Local CSBG Resources'!$K$30 | D84: =IF(ISBLANK(M2C3b10CCDBG),"",M2C3b10CCDBG) ->  | E84: Number | F84: M2C3b10CCDBG
A85: C.3b.11 | B85: M2C3b11CED | C85: ="'='" & MID(CELL("address",INDIRECT(B85)),$I$3+1,100) -> '='Section C. Local CSBG Resources'!$K$31 | D85: =IF(ISBLANK(M2C3b11CED),"",M2C3b11CED) ->  | E85: Number | F85: M2C3b11CED
A86: C.3b.12.i.oth | B86: M2C3b12iOtherHHSName | C86: ="'='" & MID(CELL("address",INDIRECT(B86)),$I$3+1,100) -> '='Section C. Local CSBG Resources'!$F$33 | D86: =IF(ISBLANK(M2C3b12iOtherHHSName),"",M2C3b12iOtherHHSName) ->  | E86: Text | F86: M2C3b12iOtherHHSName
A87: C.3b.12.i.CFDA | B87: M2C3b12iOtherHHSCFDA | C87: ="'='" & MID(CELL("address",INDIRECT(B87)),$I$3+1,100) -> '='Section C. Local CSBG Resources'!$I$33 | D87: =IF(ISBLANK(M2C3b12iOtherHHSCFDA),"",M2C3b12iOtherHHSCFDA) ->  | E87: Text | F87: M2C3b12iOtherHHSCFDA
A88: C.3b.12.i | B88: M2C3b12iOtherHHSDollar | C88: ="'='" & MID(CELL("address",INDIRECT(B88)),$I$3+1,100) -> '='Section C. Local CSBG Resources'!$K$33 | D88: =IF(ISBLANK(M2C3b12iOtherHHSDollar),"",M2C3b12iOtherHHSDollar) ->  | E88: Number | F88: M2C3b12iOtherHHSDollar
A89: C.3b.12.ii.oth | B89: M2C3b12iiOtherHHSName | C89: ="'='" & MID(CELL("address",INDIRECT(B89)),$I$3+1,100) -> '='Section C. Local CSBG Resources'!$F$34 | D89: =IF(ISBLANK(M2C3b12iiOtherHHSName),"",M2C3b12iiOtherHHSName) ->  | E89: Text | F89: M2C3b12iiOtherHHSName
A90: C.3b.12.ii.CFDA | B90: M2C3b12iiOtherHHSCFDA | C90: ="'='" & MID(CELL("address",INDIRECT(B90)),$I$3+1,100) -> '='Section C. Local CSBG Resources'!$I$34 | D90: =IF(ISBLANK(M2C3b12iiOtherHHSCFDA),"",M2C3b12iiOtherHHSCFDA) ->  | E90: Text | F90: M2C3b12iiOtherHHSCFDA
A91: C.3b.12.ii | B91: M2C3b12iiOtherHHSDollar | C91: ="'='" & MID(CELL("address",INDIRECT(B91)),$I$3+1,100) -> '='Section C. Local CSBG Resources'!$K$34 | D91: =IF(ISBLANK(M2C3b12iiOtherHHSDollar),"",M2C3b12iiOtherHHSDollar) ->  | E91: Number | F91: M2C3b12iiOtherHHSDollar
A92: C.3b.12.iii.oth | B92: M2C3b12iiiOtherHHSName | C92: ="'='" & MID(CELL("address",INDIRECT(B92)),$I$3+1,100) -> '='Section C. Local CSBG Resources'!$F$35 | D92: =IF(ISBLANK(M2C3b12iiiOtherHHSName),"",M2C3b12iiiOtherHHSName) ->  | E92: Text | F92: M2C3b12iiiOtherHHSName
A93: C.3b.12.iii.CFDA | B93: M2C3b12iiiOtherHHSCFDA | C93: ="'='" & MID(CELL("address",INDIRECT(B93)),$I$3+1,100) -> '='Section C. Local CSBG Resources'!$I$35 | D93: =IF(ISBLANK(M2C3b12iiiOtherHHSCFDA),"",M2C3b12iiiOtherHHSCFDA) ->  | E93: Text | F93: M2C3b12iiiOtherHHSCFDA
A94: C.3b.12.iii | B94: M2C3b12iiiOtherHHSDollar | C94: ="'='" & MID(CELL("address",INDIRECT(B94)),$I$3+1,100) -> '='Section C. Local CSBG Resources'!$K$35 | D94: =IF(ISBLANK(M2C3b12iiiOtherHHSDollar),"",M2C3b12iiiOtherHHSDollar) ->  | E94: Number | F94: M2C3b12iiiOtherHHSDollar
A95: C.3b.12.iv.oth | B95: M2C3b12ivOtherHHSName | C95: ="'='" & MID(CELL("address",INDIRECT(B95)),$I$3+1,100) -> '='Section C. Local CSBG Resources'!$F$36 | D95: =IF(ISBLANK(M2C3b12ivOtherHHSName),"",M2C3b12ivOtherHHSName) ->  | E95: Text | F95: M2C3b12ivOtherHHSName
A96: C.3b.12.iv.CFDA | B96: M2C3b12ivOtherHHSCFDA | C96: ="'='" & MID(CELL("address",INDIRECT(B96)),$I$3+1,100) -> '='Section C. Local CSBG Resources'!$I$36 | D96: =IF(ISBLANK(M2C3b12ivOtherHHSCFDA),"",M2C3b12ivOtherHHSCFDA) ->  | E96: Text | F96: M2C3b12ivOtherHHSCFDA
A97: C.3b.12.iv | B97: M2C3b12ivOtherHHSDollar | C97: ="'='" & MID(CELL("address",INDIRECT(B97)),$I$3+1,100) -> '='Section C. Local CSBG Resources'!$K$36 | D97: =IF(ISBLANK(M2C3b12ivOtherHHSDollar),"",M2C3b12ivOtherHHSDollar) ->  | E97: Number | F97: M2C3b12ivOtherHHSDollar
A98: C.3b.12.v.oth | B98: M2C3b12vOtherHHSName | C98: ="'='" & MID(CELL("address",INDIRECT(B98)),$I$3+1,100) -> '='Section C. Local CSBG Resources'!$F$37 | E98: Text | H98: M2C3b12vOtherHHSName
A99: C.3b.12.v.CFDA | B99: M2C3b12vOtherHHSCFDA | C99: ="'='" & MID(CELL("address",INDIRECT(B99)),$I$3+1,100) -> '='Section C. Local CSBG Resources'!$I$37 | E99: Text | H99: M2C3b12vOtherHHSCFDA
A100: C.3b.12.v | B100: M2C3b12vOtherHHSDollar | C100: ="'='" & MID(CELL("address",INDIRECT(B100)),$I$3+1,100) -> '='Section C. Local CSBG Resources'!$K$37 | E100: Number | H100: M2C3b12vOtherHHSDollar
A101: C.3b.12.vi.oth | B101: M2C3b12viOtherHHSName | C101: ="'='" & MID(CELL("address",INDIRECT(B101)),$I$3+1,100) -> '='Section C. Local CSBG Resources'!$F$38 | E101: Text | H101: M2C3b12viOtherHHSName
A102: C.3b.12.vi.CFDA | B102: M2C3b12viOtherHHSCFDA | C102: ="'='" & MID(CELL("address",INDIRECT(B102)),$I$3+1,100) -> '='Section C. Local CSBG Resources'!$I$38 | E102: Text | H102: M2C3b12viOtherHHSCFDA
A103: C.3b.12.vi | B103: M2C3b12viOtherHHSDollar | C103: ="'='" & MID(CELL("address",INDIRECT(B103)),$I$3+1,100) -> '='Section C. Local CSBG Resources'!$K$38 | E103: Number | H103: M2C3b12viOtherHHSDollar
A104: C.3b.12.vii.oth | B104: M2C3b12viiOtherHHSName | C104: ="'='" & MID(CELL("address",INDIRECT(B104)),$I$3+1,100) -> '='Section C. Local CSBG Resources'!$F$39 | E104: Text | H104: M2C3b12viiOtherHHSName
A105: C.3b.12.vii.CFDA | B105: M2C3b12viiOtherHHSCFDA | C105: ="'='" & MID(CELL("address",INDIRECT(B105)),$I$3+1,100) -> '='Section C. Local CSBG Resources'!$I$39 | E105: Text | H105: M2C3b12viiOtherHHSCFDA
A106: C.3b.12.vii | B106: M2C3b12viiOtherHHSDollar | C106: ="'='" & MID(CELL("address",INDIRECT(B106)),$I$3+1,100) -> '='Section C. Local CSBG Resources'!$K$39 | E106: Number | H106: M2C3b12viiOtherHHSDollar
A107: C.3b.12.viii.oth | B107: M2C3b12viiiOtherHHSName | C107: ="'='" & MID(CELL("address",INDIRECT(B107)),$I$3+1,100) -> '='Section C. Local CSBG Resources'!$F$40 | E107: Text | H107: M2C3b12viiiOtherHHSName
A108: C.3b.12.viii.CFDA | B108: M2C3b12viiiOtherHHSCFDA | C108: ="'='" & MID(CELL("address",INDIRECT(B108)),$I$3+1,100) -> '='Section C. Local CSBG Resources'!$I$40 | E108: Text | H108: M2C3b12viiiOtherHHSCFDA
A109: C.3b.12.viii | B109: M2C3b12viiiOtherHHSDollar | C109: ="'='" & MID(CELL("address",INDIRECT(B109)),$I$3+1,100) -> '='Section C. Local CSBG Resources'!$K$40 | E109: Number | H109: M2C3b12viiiOtherHHSDollar
A110: C.3b.12.ix.oth | B110: M2C3b12ixOtherHHSName | C110: ="'='" & MID(CELL("address",INDIRECT(B110)),$I$3+1,100) -> '='Section C. Local CSBG Resources'!$F$41 | E110: Text | H110: M2C3b12ixOtherHHSName
A111: C.3b.12.ix.CFDA | B111: M2C3b12ixOtherHHSCFDA | C111: ="'='" & MID(CELL("address",INDIRECT(B111)),$I$3+1,100) -> '='Section C. Local CSBG Resources'!$I$41 | E111: Text | H111: M2C3b12ixOtherHHSCFDA
A112: C.3b.12.ix | B112: M2C3b12ixOtherHHSDollar | C112: ="'='" & MID(CELL("address",INDIRECT(B112)),$I$3+1,100) -> '='Section C. Local CSBG Resources'!$K$41 | E112: Number | H112: M2C3b12ixOtherHHSDollar
A113: C.3b.12.x.oth | B113: M2C3b12xOtherHHSName | C113: ="'='" & MID(CELL("address",INDIRECT(B113)),$I$3+1,100) -> '='Section C. Local CSBG Resources'!$F$42 | E113: Text | H113: M2C3b12xOtherHHSName
A114: C.3b.12.x.CFDA | B114: M2C3b12xOtherHHSCFDA | C114: ="'='" & MID(CELL("address",INDIRECT(B114)),$I$3+1,100) -> '='Section C. Local CSBG Resources'!$I$42 | E114: Text | H114: M2C3b12xOtherHHSCFDA
A115: C.3b.12.x | B115: M2C3b12xOtherHHSDollar | C115: ="'='" & MID(CELL("address",INDIRECT(B115)),$I$3+1,100) -> '='Section C. Local CSBG Resources'!$K$42 | E115: Number | H115: M2C3b12xOtherHHSDollar
A116: C.3b.13 | B116: M2C3b13TotalHHS | C116: ="'='" & MID(CELL("address",INDIRECT(B116)),$I$3+1,100) -> '='Section C. Local CSBG Resources'!$K$44 | D116: =IF(ISBLANK(M2C3b13TotalHHS),"",M2C3b13TotalHHS) -> 0 | E116: Number | F116: M2C3b13TotalHHS
A117: C.3c.1 | B117: M2C3c1WIC | C117: ="'='" & MID(CELL("address",INDIRECT(B117)),$I$3+1,100) -> '='Section C. Local CSBG Resources'!$K$46 | D117: =IF(ISBLANK(M2C3c1WIC),"",M2C3c1WIC) ->  | E117: Number | F117: M2C3c1WIC
A118: C.3c.2 | B118: M2C3c2USDANonFood | C118: ="'='" & MID(CELL("address",INDIRECT(B118)),$I$3+1,100) -> '='Section C. Local CSBG Resources'!$K$47 | D118: =IF(ISBLANK(M2C3c2USDANonFood),"",M2C3c2USDANonFood) ->  | E118: Number | F118: M2C3c2USDANonFood
A119: C.3c.3 | B119: M2C3c3USDAFood | C119: ="'='" & MID(CELL("address",INDIRECT(B119)),$I$3+1,100) -> '='Section C. Local CSBG Resources'!$K$48 | D119: =IF(ISBLANK(M2C3c3USDAFood),"",M2C3c3USDAFood) -> 45337 | E119: Number | F119: M2C3c3USDAFood
A120: C.3d.1 | B120: M2C3d1CDBG | C120: ="'='" & MID(CELL("address",INDIRECT(B120)),$I$3+1,100) -> '='Section C. Local CSBG Resources'!$K$50 | D120: =IF(ISBLANK(M2C3d1CDBG),"",M2C3d1CDBG) -> 789937 | E120: Number | F120: M2C3d1CDBG
A121: C.3d.2 | B121: M2C3d2Sect8 | C121: ="'='" & MID(CELL("address",INDIRECT(B121)),$I$3+1,100) -> '='Section C. Local CSBG Resources'!$K$51 | D121: =IF(ISBLANK(M2C3d2Sect8),"",M2C3d2Sect8) ->  | E121: Number | F121: M2C3d2Sect8
A122: C.3d.3 | B122: M2C3d3Sect202 | C122: ="'='" & MID(CELL("address",INDIRECT(B122)),$I$3+1,100) -> '='Section C. Local CSBG Resources'!$K$52 | D122: =IF(ISBLANK(M2C3d3Sect202),"",M2C3d3Sect202) ->  | E122: Number | F122: M2C3d3Sect202
A123: C.3d.4 | B123: M2C3d4HOMETBRA | C123: ="'='" & MID(CELL("address",INDIRECT(B123)),$I$3+1,100) -> '='Section C. Local CSBG Resources'!$K$53 | D123: =IF(ISBLANK(M2C3d4HOMETBRA),"",M2C3d4HOMETBRA) -> 26733 | E123: Number | F123: M2C3d4HOMETBRA
A124: C.3d.5 | B124: M2C3d5H4H | C124: ="'='" & MID(CELL("address",INDIRECT(B124)),$I$3+1,100) -> '='Section C. Local CSBG Resources'!$K$54 | D124: =IF(ISBLANK(M2C3d5H4H),"",M2C3d5H4H) ->  | E124: Number | F124: M2C3d5H4H
A125: C.3d.6 | B125: M2C3d6ESG | C125: ="'='" & MID(CELL("address",INDIRECT(B125)),$I$3+1,100) -> '='Section C. Local CSBG Resources'!$K$55 | D125: =IF(ISBLANK(M2C3d6ESG),"",M2C3d6ESG) -> 447225 | E125: Number | F125: M2C3d6ESG
A126: C.3d.7 | B126: M2C3d7ContinuumCare | C126: ="'='" & MID(CELL("address",INDIRECT(B126)),$I$3+1,100) -> '='Section C. Local CSBG Resources'!$K$56 | D126: =IF(ISBLANK(M2C3d7ContinuumCare),"",M2C3d7ContinuumCare) ->  | E126: Number | F126: M2C3d7ContinuumCare
A127: C.3d.8 | B127: M2C3d8TotalHUD | C127: ="'='" & MID(CELL("address",INDIRECT(B127)),$I$3+1,100) -> '='Section C. Local CSBG Resources'!$K$57 | D127: =IF(ISBLANK(M2C3d8TotalHUD),"",M2C3d8TotalHUD) ->  | E127: Number | F127: M2C3d8TotalHUD
A128: C.3e.1 | B128: M2C3eWIOA | C128: ="'='" & MID(CELL("address",INDIRECT(B128)),$I$3+1,100) -> '='Section C. Local CSBG Resources'!$K$59 | D128: =IF(ISBLANK(M2C3eWIOA),"",M2C3eWIOA) ->  | E128: Number | F128: M2C3eWIOA
A129: C.3e.2 | B129: M2C3eEmploymentTraining | C129: ="'='" & MID(CELL("address",INDIRECT(B129)),$I$3+1,100) -> '='Section C. Local CSBG Resources'!$K$60 | D129: =IF(ISBLANK(M2C3eEmploymentTraining),"",M2C3eEmploymentTraining) ->  | E129: Number | F129: M2C3eEmploymentTraining
A130: C.3e.3 | B130: M2C3eTotalDOL | C130: ="'='" & MID(CELL("address",INDIRECT(B130)),$I$3+1,100) -> '='Section C. Local CSBG Resources'!$K$61 | D130: =IF(ISBLANK(M2C3eTotalDOL),"",M2C3eTotalDOL) ->  | E130: Number | F130: M2C3eTotalDOL
A131: C.3f | B131: M2C3fCNCS | C131: ="'='" & MID(CELL("address",INDIRECT(B131)),$I$3+1,100) -> '='Section C. Local CSBG Resources'!$K$62 | D131: =IF(ISBLANK(M2C3fCNCS),"",M2C3fCNCS) ->  | E131: Number | F131: M2C3fCNCS
A132: C.3g | B132: M2C3gFEMA | C132: ="'='" & MID(CELL("address",INDIRECT(B132)),$I$3+1,100) -> '='Section C. Local CSBG Resources'!$K$63 | D132: =IF(ISBLANK(M2C3gFEMA),"",M2C3gFEMA) ->  | E132: Number | F132: M2C3gFEMA
A133: C.3h | B133: M2C3hTransportation | C133: ="'='" & MID(CELL("address",INDIRECT(B133)),$I$3+1,100) -> '='Section C. Local CSBG Resources'!$K$64 | D133: =IF(ISBLANK(M2C3hTransportation),"",M2C3hTransportation) ->  | E133: Number | F133: M2C3hTransportation
A134: C.3i | B134: M2C3iEducation | C134: ="'='" & MID(CELL("address",INDIRECT(B134)),$I$3+1,100) -> '='Section C. Local CSBG Resources'!$K$65 | D134: =IF(ISBLANK(M2C3iEducation),"",M2C3iEducation) ->  | E134: Number | F134: M2C3iEducation
A135: C.3j | B135: M2C3jJustice | C135: ="'='" & MID(CELL("address",INDIRECT(B135)),$I$3+1,100) -> '='Section C. Local CSBG Resources'!$K$66 | D135: =IF(ISBLANK(M2C3jJustice),"",M2C3jJustice) ->  | E135: Number | F135: M2C3jJustice
A136: C.3k | B136: M2C3kTreasury | C136: ="'='" & MID(CELL("address",INDIRECT(B136)),$I$3+1,100) -> '='Section C. Local CSBG Resources'!$K$67 | D136: =IF(ISBLANK(M2C3kTreasury),"",M2C3kTreasury) -> 181302 | E136: Number | F136: M2C3kTreasury
A137: C.3l.i.oth | B137: M2C3liOtherFedName | C137: ="'='" & MID(CELL("address",INDIRECT(B137)),$I$3+1,100) -> '='Section C. Local CSBG Resources'!$F$69 | D137: =IF(ISBLANK(M2C3liOtherFedName),"",M2C3liOtherFedName) -> EDA Planning | E137: Text | F137: M2C3liOtherFedName
A138: C.3l.i.CFDA | B138: M2C3liOtherFedCFDA | C138: ="'='" & MID(CELL("address",INDIRECT(B138)),$I$3+1,100) -> '='Section C. Local CSBG Resources'!$I$69 | D138: =IF(ISBLANK(M2C3liOtherFedCFDA),"",M2C3liOtherFedCFDA) -> 11.307 | E138: Text | F138: M2C3liOtherFedCFDA
A139: C.3l.i | B139: M2C3liOtherFedDollar | C139: ="'='" & MID(CELL("address",INDIRECT(B139)),$I$3+1,100) -> '='Section C. Local CSBG Resources'!$K$69 | D139: =IF(ISBLANK(M2C3liOtherFedDollar),"",M2C3liOtherFedDollar) -> 260000 | E139: Number | F139: M2C3liOtherFedDollar
A140: C.3l.ii.oth | B140: M2C3liiOtherFedName | C140: ="'='" & MID(CELL("address",INDIRECT(B140)),$I$3+1,100) -> '='Section C. Local CSBG Resources'!$F$70 | D140: =IF(ISBLANK(M2C3liiOtherFedName),"",M2C3liiOtherFedName) ->  | E140: Text | F140: M2C3liiOtherFedName
A141: C.3l.ii.CFDA | B141: M2C3liiOtherFedCFDA | C141: ="'='" & MID(CELL("address",INDIRECT(B141)),$I$3+1,100) -> '='Section C. Local CSBG Resources'!$I$70 | D141: =IF(ISBLANK(M2C3liiOtherFedCFDA),"",M2C3liiOtherFedCFDA) ->  | E141: Text | F141: M2C3liiOtherFedCFDA
A142: C.3l.ii | B142: M2C3liiOtherFedDollar | C142: ="'='" & MID(CELL("address",INDIRECT(B142)),$I$3+1,100) -> '='Section C. Local CSBG Resources'!$K$70 | D142: =IF(ISBLANK(M2C3liiOtherFedDollar),"",M2C3liiOtherFedDollar) ->  | E142: Number | F142: M2C3liiOtherFedDollar
A143: C.3l.iii.oth | B143: M2C3liiiOtherFedName | C143: ="'='" & MID(CELL("address",INDIRECT(B143)),$I$3+1,100) -> '='Section C. Local CSBG Resources'!$F$71 | D143: =IF(ISBLANK(M2C3liiiOtherFedName),"",M2C3liiiOtherFedName) ->  | E143: Text | F143: M2C3liiiOtherFedName
A144: C.3l.iii.CFDA | B144: M2C3liiiOtherFedCFDA | C144: ="'='" & MID(CELL("address",INDIRECT(B144)),$I$3+1,100) -> '='Section C. Local CSBG Resources'!$I$71 | D144: =IF(ISBLANK(M2C3liiiOtherFedCFDA),"",M2C3liiiOtherFedCFDA) ->  | E144: Text | F144: M2C3liiiOtherFedCFDA
A145: C.3l.iii | B145: M2C3liiiOtherFedDollar | C145: ="'='" & MID(CELL("address",INDIRECT(B145)),$I$3+1,100) -> '='Section C. Local CSBG Resources'!$K$71 | D145: =IF(ISBLANK(M2C3liiiOtherFedDollar),"",M2C3liiiOtherFedDollar) ->  | E145: Number | F145: M2C3liiiOtherFedDollar
A146: C.3l.iv.oth | B146: M2C3livOtherFedName | C146: ="'='" & MID(CELL("address",INDIRECT(B146)),$I$3+1,100) -> '='Section C. Local CSBG Resources'!$F$72 | D146: =IF(ISBLANK(M2C3livOtherFedName),"",M2C3livOtherFedName) ->  | E146: Text | F146: M2C3livOtherFedName
A147: C.3l.iv.CFDA | B147: M2C3livOtherFedCFDA | C147: ="'='" & MID(CELL("address",INDIRECT(B147)),$I$3+1,100) -> '='Section C. Local CSBG Resources'!$I$72 | D147: =IF(ISBLANK(M2C3livOtherFedCFDA),"",M2C3livOtherFedCFDA) ->  | E147: Text | F147: M2C3livOtherFedCFDA
A148: C.3l.iv | B148: M2C3livOtherFedDollar | C148: ="'='" & MID(CELL("address",INDIRECT(B148)),$I$3+1,100) -> '='Section C. Local CSBG Resources'!$K$72 | D148: =IF(ISBLANK(M2C3livOtherFedDollar),"",M2C3livOtherFedDollar) ->  | E148: Number | F148: M2C3livOtherFedDollar
A149: C.3l.v.oth | B149: M2C3lvOtherFedName | C149: ="'='" & MID(CELL("address",INDIRECT(B149)),$I$3+1,100) -> '='Section C. Local CSBG Resources'!$F$73 | E149: Text | H149: M2C3lvOtherFedName
A150: C.3l.v.CFDA | B150: M2C3lvOtherFedCFDA | C150: ="'='" & MID(CELL("address",INDIRECT(B150)),$I$3+1,100) -> '='Section C. Local CSBG Resources'!$I$73 | E150: Text | H150: M2C3lvOtherFedCFDA
A151: C.3l.v | B151: M2C3lvOtherFedDollar | C151: ="'='" & MID(CELL("address",INDIRECT(B151)),$I$3+1,100) -> '='Section C. Local CSBG Resources'!$K$73 | E151: Number | H151: M2C3lvOtherFedDollar
A152: C.3l.vi.oth | B152: M2C3lviOtherFedName | C152: ="'='" & MID(CELL("address",INDIRECT(B152)),$I$3+1,100) -> '='Section C. Local CSBG Resources'!$F$74 | E152: Text | H152: M2C3lviOtherFedName
A153: C.3l.vi.CFDA | B153: M2C3lviOtherFedCFDA | C153: ="'='" & MID(CELL("address",INDIRECT(B153)),$I$3+1,100) -> '='Section C. Local CSBG Resources'!$I$74 | E153: Text | H153: M2C3lviOtherFedCFDA
A154: C.3l.vi | B154: M2C3lviOtherFedDollar | C154: ="'='" & MID(CELL("address",INDIRECT(B154)),$I$3+1,100) -> '='Section C. Local CSBG Resources'!$K$74 | E154: Number | H154: M2C3lviOtherFedDollar
A155: C.3l.vii.oth | B155: M2C3lviiOtherFedName | C155: ="'='" & MID(CELL("address",INDIRECT(B155)),$I$3+1,100) -> '='Section C. Local CSBG Resources'!$F$75 | E155: Text | H155: M2C3lviiOtherFedName
A156: C.3l.vii.CFDA | B156: M2C3lviiOtherFedCFDA | C156: ="'='" & MID(CELL("address",INDIRECT(B156)),$I$3+1,100) -> '='Section C. Local CSBG Resources'!$I$75 | E156: Text | H156: M2C3lviiOtherFedCFDA
A157: C.3l.vii | B157: M2C3lviiOtherFedDollar | C157: ="'='" & MID(CELL("address",INDIRECT(B157)),$I$3+1,100) -> '='Section C. Local CSBG Resources'!$K$75 | E157: Number | H157: M2C3lviiOtherFedDollar
A158: C.3l.viii.oth | B158: M2C3lviiiOtherFedName | C158: ="'='" & MID(CELL("address",INDIRECT(B158)),$I$3+1,100) -> '='Section C. Local CSBG Resources'!$F$76 | E158: Text | H158: M2C3lviiiOtherFedName
A159: C.3l.viii.CFDA | B159: M2C3lviiiOtherFedCFDA | C159: ="'='" & MID(CELL("address",INDIRECT(B159)),$I$3+1,100) -> '='Section C. Local CSBG Resources'!$I$76 | E159: Text | H159: M2C3lviiiOtherFedCFDA
A160: C.3l.viii | B160: M2C3lviiiOtherFedDollar | C160: ="'='" & MID(CELL("address",INDIRECT(B160)),$I$3+1,100) -> '='Section C. Local CSBG Resources'!$K$76 | E160: Number | H160: M2C3lviiiOtherFedDollar
A161: C.3l.ix.oth | B161: M2C3lixOtherFedName | C161: ="'='" & MID(CELL("address",INDIRECT(B161)),$I$3+1,100) -> '='Section C. Local CSBG Resources'!$F$77 | E161: Text | H161: M2C3lixOtherFedName
A162: C.3l.ix.CFDA | B162: M2C3lixOtherFedCFDA | C162: ="'='" & MID(CELL("address",INDIRECT(B162)),$I$3+1,100) -> '='Section C. Local CSBG Resources'!$I$77 | E162: Text | H162: M2C3lixOtherFedCFDA
A163: C.3l.ix | B163: M2C3lixOtherFedDollar | C163: ="'='" & MID(CELL("address",INDIRECT(B163)),$I$3+1,100) -> '='Section C. Local CSBG Resources'!$K$77 | E163: Number | H163: M2C3lixOtherFedDollar
A164: C.3l.x.oth | B164: M2C3lxOtherFedName | C164: ="'='" & MID(CELL("address",INDIRECT(B164)),$I$3+1,100) -> '='Section C. Local CSBG Resources'!$F$78 | E164: Text | H164: M2C3lxOtherFedName
A165: C.3l.x.CFDA | B165: M2C3lxOtherFedCFDA | C165: ="'='" & MID(CELL("address",INDIRECT(B165)),$I$3+1,100) -> '='Section C. Local CSBG Resources'!$I$78 | E165: Text | H165: M2C3lxOtherFedCFDA
A166: C.3l.x | B166: M2C3lxOtherFedDollar | C166: ="'='" & MID(CELL("address",INDIRECT(B166)),$I$3+1,100) -> '='Section C. Local CSBG Resources'!$K$78 | E166: Number | H166: M2C3lxOtherFedDollar
A167: C.3m | B167: M2C3mTotalOtherFed | C167: ="'='" & MID(CELL("address",INDIRECT(B167)),$I$3+1,100) -> '='Section C. Local CSBG Resources'!$K$80 | D167: =IF(ISBLANK(M2C3mTotalOtherFed),"",M2C3mTotalOtherFed) -> 260000 | E167: Number | F167: M2C3mTotalOtherFed
A168: C.3n | B168: M2C3nTotalFedNonCSBG | C168: ="'='" & MID(CELL("address",INDIRECT(B168)),$I$3+1,100) -> '='Section C. Local CSBG Resources'!$K$81 | D168: =IF(ISBLANK(M2C3nTotalFedNonCSBG),"",M2C3nTotalFedNonCSBG) -> 3222543 | E168: Number | F168: M2C3nTotalFedNonCSBG
A169: C.4a | B169: M2C4aStateCSBG | C169: ="'='" & MID(CELL("address",INDIRECT(B169)),$I$3+1,100) -> '='Section C. Local CSBG Resources'!$K$86 | D169: =IF(ISBLANK(M2C4aStateCSBG),"",M2C4aStateCSBG) ->  | E169: Number | F169: M2C4aStateCSBG
A170: C.4b | B170: M2C4bStateHousing | C170: ="'='" & MID(CELL("address",INDIRECT(B170)),$I$3+1,100) -> '='Section C. Local CSBG Resources'!$K$87 | D170: =IF(ISBLANK(M2C4bStateHousing),"",M2C4bStateHousing) ->  | E170: Number | F170: M2C4bStateHousing
A171: C.4c | B171: M2C4cStateNutrition | C171: ="'='" & MID(CELL("address",INDIRECT(B171)),$I$3+1,100) -> '='Section C. Local CSBG Resources'!$K$88 | D171: =IF(ISBLANK(M2C4cStateNutrition),"",M2C4cStateNutrition) -> 25568 | E171: Number | F171: M2C4cStateNutrition
A172: C.4d | B172: M2C4dStateEarlyChild | C172: ="'='" & MID(CELL("address",INDIRECT(B172)),$I$3+1,100) -> '='Section C. Local CSBG Resources'!$K$89 | D172: =IF(ISBLANK(M2C4dStateEarlyChild),"",M2C4dStateEarlyChild) ->  | E172: Number | F172: M2C4dStateEarlyChild
A173: C.4e | B173: M2C4eStateEnergy | C173: ="'='" & MID(CELL("address",INDIRECT(B173)),$I$3+1,100) -> '='Section C. Local CSBG Resources'!$K$90 | D173: =IF(ISBLANK(M2C4eStateEnergy),"",M2C4eStateEnergy) ->  | E173: Number | F173: M2C4eStateEnergy
A174: C.4f | B174: M2C4fStateHealth | C174: ="'='" & MID(CELL("address",INDIRECT(B174)),$I$3+1,100) -> '='Section C. Local CSBG Resources'!$K$91 | D174: =IF(ISBLANK(M2C4fStateHealth),"",M2C4fStateHealth) ->  | E174: Number | F174: M2C4fStateHealth
A175: C.4g | B175: M2C4gStateYouthDev | C175: ="'='" & MID(CELL("address",INDIRECT(B175)),$I$3+1,100) -> '='Section C. Local CSBG Resources'!$K$92 | D175: =IF(ISBLANK(M2C4gStateYouthDev),"",M2C4gStateYouthDev) ->  | E175: Number | F175: M2C4gStateYouthDev
A176: C.4h | B176: M2C4hStateEmploymentTraining | C176: ="'='" & MID(CELL("address",INDIRECT(B176)),$I$3+1,100) -> '='Section C. Local CSBG Resources'!$K$93 | D176: =IF(ISBLANK(M2C4hStateEmploymentTraining),"",M2C4hStateEmploymentTraining) ->  | E176: Number | F176: M2C4hStateEmploymentTraining
A177: C.4i | B177: M2C4iStateSenior | C177: ="'='" & MID(CELL("address",INDIRECT(B177)),$I$3+1,100) -> '='Section C. Local CSBG Resources'!$K$94 | D177: =IF(ISBLANK(M2C4iStateSenior),"",M2C4iStateSenior) -> 264100 | E177: Number | F177: M2C4iStateSenior
A178: C.4j | B178: M2C4jStateTransportation | C178: ="'='" & MID(CELL("address",INDIRECT(B178)),$I$3+1,100) -> '='Section C. Local CSBG Resources'!$K$95 | D178: =IF(ISBLANK(M2C4jStateTransportation),"",M2C4jStateTransportation) ->  | E178: Number | F178: M2C4jStateTransportation
A179: C.4k | B179: M2C4kStateEducation | C179: ="'='" & MID(CELL("address",INDIRECT(B179)),$I$3+1,100) -> '='Section C. Local CSBG Resources'!$K$96 | D179: =IF(ISBLANK(M2C4kStateEducation),"",M2C4kStateEducation) ->  | E179: Number | F179: M2C4kStateEducation
A180: C.4l | B180: M2C4lStateRuralEcon | C180: ="'='" & MID(CELL("address",INDIRECT(B180)),$I$3+1,100) -> '='Section C. Local CSBG Resources'!$K$97 | D180: =IF(ISBLANK(M2C4lStateRuralEcon),"",M2C4lStateRuralEcon) ->  | E180: Number | F180: M2C4lStateRuralEcon
A181: C.4m | B181: M2C4mStateFamilyDev | C181: ="'='" & MID(CELL("address",INDIRECT(B181)),$I$3+1,100) -> '='Section C. Local CSBG Resources'!$K$98 | D181: =IF(ISBLANK(M2C4mStateFamilyDev),"",M2C4mStateFamilyDev) ->  | E181: Number | F181: M2C4mStateFamilyDev
A182: C.4n.i.oth | B182: M2C4niOtherStateName | C182: ="'='" & MID(CELL("address",INDIRECT(B182)),$I$3+1,100) -> '='Section C. Local CSBG Resources'!$F$100 | D182: =IF(ISBLANK(M2C4niOtherStateName),"",M2C4niOtherStateName) -> EITC | E182: Text | F182: M2C4niOtherStateName
A183: C.4n.i | B183: M2C4niOtherStateDollar | C183: ="'='" & MID(CELL("address",INDIRECT(B183)),$I$3+1,100) -> '='Section C. Local CSBG Resources'!$K$100 | D183: =IF(ISBLANK(M2C4niOtherStateDollar),"",M2C4niOtherStateDollar) -> 22750 | E183: Number | F183: M2C4niOtherStateDollar
A184: C.4n.ii.oth | B184: M2C4niiOtherStateName | C184: ="'='" & MID(CELL("address",INDIRECT(B184)),$I$3+1,100) -> '='Section C. Local CSBG Resources'!$F$101 | D184: =IF(ISBLANK(M2C4niiOtherStateName),"",M2C4niiOtherStateName) ->  | E184: Text | F184: M2C4niiOtherStateName
A185: C.4n.ii | B185: M2C4niiOtherStateDollar | C185: ="'='" & MID(CELL("address",INDIRECT(B185)),$I$3+1,100) -> '='Section C. Local CSBG Resources'!$K$101 | D185: =IF(ISBLANK(M2C4niiOtherStateDollar),"",M2C4niiOtherStateDollar) ->  | E185: Number | F185: M2C4niiOtherStateDollar
A186: C.4n.iii.oth | B186: M2C4niiiOtherStateName | C186: ="'='" & MID(CELL("address",INDIRECT(B186)),$I$3+1,100) -> '='Section C. Local CSBG Resources'!$F$102 | D186: =IF(ISBLANK(M2C4niiiOtherStateName),"",M2C4niiiOtherStateName) ->  | E186: Text | F186: M2C4niiiOtherStateName
A187: C.4n.iii | B187: M2C4niiiOtherStateDollar | C187: ="'='" & MID(CELL("address",INDIRECT(B187)),$I$3+1,100) -> '='Section C. Local CSBG Resources'!$K$102 | D187: =IF(ISBLANK(M2C4niiiOtherStateDollar),"",M2C4niiiOtherStateDollar) ->  | E187: Number | F187: M2C4niiiOtherStateDollar
A188: C.4n.iv.oth | B188: M2C4nivOtherStateName | C188: ="'='" & MID(CELL("address",INDIRECT(B188)),$I$3+1,100) -> '='Section C. Local CSBG Resources'!$F$103 | D188: =IF(ISBLANK(M2C4nivOtherStateName),"",M2C4nivOtherStateName) ->  | E188: Text | F188: M2C4nivOtherStateName
A189: C.4n.iv | B189: M2C4nivOtherStateDollar | C189: ="'='" & MID(CELL("address",INDIRECT(B189)),$I$3+1,100) -> '='Section C. Local CSBG Resources'!$K$103 | D189: =IF(ISBLANK(M2C4nivOtherStateDollar),"",M2C4nivOtherStateDollar) ->  | E189: Number | F189: M2C4nivOtherStateDollar
A190: C.4n.v.oth | B190: M2C4nvOtherStateName | C190: ="'='" & MID(CELL("address",INDIRECT(B190)),$I$3+1,100) -> '='Section C. Local CSBG Resources'!$F$104 | E190: Text | H190: M2C4nvOtherStateName
A191: C.4n.v | B191: M2C4nvOtherStateDollar | C191: ="'='" & MID(CELL("address",INDIRECT(B191)),$I$3+1,100) -> '='Section C. Local CSBG Resources'!$K$104 | E191: Number | H191: M2C4nvOtherStateDollar
A192: C.4n.vi.oth | B192: M2C4nviOtherStateName | C192: ="'='" & MID(CELL("address",INDIRECT(B192)),$I$3+1,100) -> '='Section C. Local CSBG Resources'!$F$105 | E192: Text | H192: M2C4nviOtherStateName
A193: C.4n.vi | B193: M2C4nviOtherStateDollar | C193: ="'='" & MID(CELL("address",INDIRECT(B193)),$I$3+1,100) -> '='Section C. Local CSBG Resources'!$K$105 | E193: Number | H193: M2C4nviOtherStateDollar
A194: C.4n.vii.oth | B194: M2C4nviiOtherStateName | C194: ="'='" & MID(CELL("address",INDIRECT(B194)),$I$3+1,100) -> '='Section C. Local CSBG Resources'!$F$106 | E194: Text | H194: M2C4nviiOtherStateName
A195: C.4n.vii | B195: M2C4nviiOtherStateDollar | C195: ="'='" & MID(CELL("address",INDIRECT(B195)),$I$3+1,100) -> '='Section C. Local CSBG Resources'!$K$106 | E195: Number | H195: M2C4nviiOtherStateDollar
A196: C.4n.viii.oth | B196: M2C4nviiiOtherStateName | C196: ="'='" & MID(CELL("address",INDIRECT(B196)),$I$3+1,100) -> '='Section C. Local CSBG Resources'!$F$107 | E196: Text | H196: M2C4nviiiOtherStateName
A197: C.4n.viii | B197: M2C4nviiiOtherStateDollar | C197: ="'='" & MID(CELL("address",INDIRECT(B197)),$I$3+1,100) -> '='Section C. Local CSBG Resources'!$K$107 | E197: Number | H197: M2C4nviiiOtherStateDollar
A198: C.4n.ix.oth | B198: M2C4nixOtherStateName | C198: ="'='" & MID(CELL("address",INDIRECT(B198)),$I$3+1,100) -> '='Section C. Local CSBG Resources'!$F$108 | E198: Text | H198: M2C4nixOtherStateName
A199: C.4n.ix | B199: M2C4nixOtherStateDollar | C199: ="'='" & MID(CELL("address",INDIRECT(B199)),$I$3+1,100) -> '='Section C. Local CSBG Resources'!$K$108 | E199: Number | H199: M2C4nixOtherStateDollar
A200: C.4n.x.oth | B200: M2C4nxOtherStateName | C200: ="'='" & MID(CELL("address",INDIRECT(B200)),$I$3+1,100) -> '='Section C. Local CSBG Resources'!$F$109 | E200: Text | H200: M2C4nxOtherStateName
A201: C.4n.x | B201: M2C4nxOtherStateDollar | C201: ="'='" & MID(CELL("address",INDIRECT(B201)),$I$3+1,100) -> '='Section C. Local CSBG Resources'!$K$109 | E201: Number | H201: M2C4nxOtherStateDollar
... 20 more rows

Sheet Lookups (hidden)
B3: EditText_WsName | C3: Housing NPIs
B4: EditText_FieldName | C4: FNPI 4z.1
B5: EditText_Text | C5: fff
B6: EditText_Status | C6: Cancel
B7: EditText_MaxLength | C7: 4000
B9: Max_Errors | C9: 500
B11: XML_Filename | C11: D:\Work\NASCSP - SmartForms\SmartForms 2019-20\Module 4 SmartForm - Employment Tab - 2019-20.xml
B15: A1_Period | C15: =COUNTIF(C16:C18,TRUE) -> 1
B16: Period_1 | C16: FALSE
B17: Period_2 | C17: TRUE
B18: Period_3 | C18: FALSE
B20: A41_Activities | C20: =COUNTIF(Lookups!C22:C26,TRUE) -> 5
E21: Prior Year
C22: TRUE | D22: community | E22: TRUE
C23: TRUE | D23: data mgmt | E23: TRUE
B24: A41_Other | C24: TRUE | D24: other | E24: FALSE
C25: TRUE | D25: planning | E25: TRUE
C26: TRUE | D26: training | E26: TRUE
